{"text_format":"1","workbook":"xlsx","n_sheets":9,"sheets":["Bilgi Girişi","Bordro","Hesaplamalar","Tablo","Ödeme Emri","Değerler Tablosu","Asg Geç İnd","Vergi","Derece Kademe"],"not_rendered":{"charts":0,"images":0,"macros":1,"external_links":0,"defined_names":8,"comments":5,"pivot_tables":0},"unopened":[],"bounds":{"document_bytes":16777216,"sheet_cells":100000,"rows_first":2000,"rows_last":500,"rows_between":2000,"halvings":0,"cell_chars":16384,"cell_head_chars":4096},"cells_cut":0,"cells_raw":0,"read":"whole","date_system":"1900"}

{"sheet":"Bilgi Girişi","index":0,"n_rows":155,"n_cols":9,"rows_kept":155,"cut":false,"hidden":false,"merged":[[4,2,4,8],[27,3,27,4],[28,3,28,4],[15,7,15,8],[24,3,24,4],[7,3,7,4],[10,3,10,4],[8,3,8,4],[9,3,9,4],[7,7,7,8],[8,7,8,8],[9,7,9,8],[25,3,25,4],[26,3,26,4],[14,3,14,4],[20,3,20,4],[10,7,10,8],[25,7,25,8],[24,7,24,8],[17,7,17,8],[18,7,18,8],[22,7,22,8],[13,7,13,8],[23,3,23,4],[1,2,1,6],[2,3,2,6],[3,5,3,6],[11,3,11,4],[5,2,5,8],[6,7,6,8],[6,3,6,4],[13,3,13,4],[22,3,22,4],[19,3,19,4],[21,3,21,4],[14,7,14,8],[19,7,19,8],[20,7,20,8],[15,3,15,4]]}
[]
[null,null,"Hesaplamaya İlişkin Mevcut Maaş ve Kişisel Bilgilerinizi Aşağıdaki Personel Bilgileri Alanına Giriniz",null,null,null,null,"Kıst Maaşmı"]
[null,null,"Kurum :","Afyon Kocatepe Üniveritesi",null,null,null,"Ay Günü:",30]
[null,1,"Ay / YIL",null,{"$f":"+'Değerler Tablosu'!E5","v":2017},"Strateji Gel Dai Bşk.",null,"Bordro Günü",30]
[null,null,"Personel Bilgileri"]
[null,null,"KİŞİSEL BİLGİLER"]
[0,2,"Personel Durumu",null,null,{"$f":"IF(D7=\"\",0,B30+1)","v":0},{"$f":"IF(D7=\"\",\"\",IF(D14='Bilgi Girişi'!C84,0,\"Özel Hizmet Tazminatı Oranı %\"))","v":""}]
[null,{"$f":"IF(D7=\"\",\"\",3)","v":""},{"$f":"IF(D7=\"\",\"\",\"T.C. Kimlik Numarası\")","v":""},null,null,{"$f":"IF($D$7=\"\",0,F7+1)","v":0},{"$f":"IF(D7=\"\",\"\",IF(D14='Bilgi Girişi'!C84,0,\"Mali Sorumluk Zammı Puanı\"))","v":""}]
[null,{"$f":"IF(D7=\"\",\"\",B8+1)","v":""},{"$f":"IF(D7=\"\",\"\",\"Kurum Sicil Numarası\")","v":""},null,null,{"$f":"IF($D$7=\"\",0,F8+1)","v":0},{"$f":"IF(D7=\"\",\"\",IF(D14='Bilgi Girişi'!C84,0,\"İş Riski Zammı Puanı\"))","v":""}]
[null,{"$f":"IF(D7=\"\",\"\",B9+1)","v":""},{"$f":"IF(D7=\"\",\"\",\"Emekli sicil Numarası\")","v":""},null,null,0,{"$f":"IF(D7=\"\",\"\",IF(D14='Bilgi Girişi'!C84,0,\"Tem.Güç.Zammı Puanı\"))","v":""}]
[null,{"$f":"IF(D7=\"\",\"\",B10+1)","v":""},{"$f":"IF(D7=\"\",\"\",\"Adınız Soyadınız\")","v":""},null,null,0,{"$f":"IF(D7=\"\",\"\",IF(D14='Bilgi Girişi'!C84,0,\"Yan Ödeme Puan Toplamı\"))","v":""},{"$f":"SUM(H8:I10)","v":0}]
[null,{"$f":"IF(D7=\"\",\"\",B11+1)","v":""},{"$f":"IF(D7=\"\",\"\",\"Medeni Haliniz\")","v":""},null,null,0,{"$f":"IF(D7=\"\",\"\",IF(D14='Bilgi Girişi'!C83,\"(İdari Personel İçin )Yabancı Diliniz Varmı ?/Düzeyi\",0))","v":""}]
[null,{"$f":"IF(D7=\"\",\"\",B12+1)","v":""},{"$f":"IF(D7=\"\",\"\",IF(D12=\"Bekar\",\"\",IF(D12=\"\",\"\",\"Çocuk Sayınız\")))","v":""},null,null,0,{"$f":"IF(D14='Bilgi Girişi'!C84,\"(Akademik Personel İçin )Yabancı Diliniz Varmı ? / Düzeyi\",0)","v":0}]
[null,{"$f":"IF(D7=\"\",\"\",B13+1)","v":""},{"$f":"IF(D7=\"\",\"\",\"Kadro Durumunuz\")","v":""},null,null,0,{"$f":"IF(D14='Bilgi Girişi'!C84,\"Yüksek Öğrenim Tazminatı Oranı %\",0)","v":0}]
[null,{"$f":"IF(D7=\"\",\"\",B14+1)","v":""},{"$f":"IF(D7=\"\",\"\",\"Kadro Ünvanınız\")","v":""},null,null,0,{"$f":"IF(D7=\"\",\"\",\"Döner Sermaye Alıyormusunuz ?\")","v":""}]
[null,{"$f":"IF(D7=\"\",\"\",B15+1)","v":""},{"$f":"IF(D7=\"\",\"\",\"Kadro Dereceniz\")","v":""},null,null,0,{"$f":"IF(D7=\"\",\"\",IF(H15=\"Evet\",0,\"Ek Ödeme Oranınız\"))","v":""}]
[null,{"$f":"IF(D7=\"\",\"\",B16+1)","v":""},{"$f":"IF(D7=\"\",\"\",\"Maaş Dereceniz / Kademeniz\")","v":""},null,null,0,{"$f":"IF(D7=\"\",\"\",\"İdari Göreviniz Varmı ? / Oranını % Giriniz\")","v":""}]
[null,{"$f":"IF(D7=\"\",\"\",B17+1)","v":""},{"$f":"IF(D7=\"\",\"\",\"Emekliliğe Esas Dereceniz / Kademeniz\")","v":""},null,null,0,{"$f":"IF(D14='Bilgi Girişi'!C84,\"Üniverite Ödeneği Oranı %\",0)","v":0}]
[null,{"$f":"IF(D7=\"\",\"\",B18+1)","v":""},{"$f":"IF(D7=\"\",\"\",\"Eski Emekliliğe Esas Dereceniz / Kademeniz\")","v":""},null,null,0,{"$f":"IF(D14='Bilgi Girişi'!C84,\"Eğitim Öğretim Ödeneği\",0)","v":0}]
[null,{"$f":"IF(D7=\"\",\"\",B19+1)","v":""},{"$f":"IF(D7=\"\",\"\",\"Kıdem Yılınız\")","v":""},null,null,0,{"$f":"IF(D14=C84,\"Akademik Teşvik Ödeneği Puanınızı Giriniz\",0)","v":0}]
[null,{"$f":"IF(D7=\"\",\"\",B20+1)","v":""},{"$f":"IF(D7=\"\",\"\",\"Eski Kıdem Yılınız\")","v":""},null,null,0,{"$f":"IF(D14=C84,\"Akademik Teşvik Oranı %\",0)","v":0}]
[null,{"$f":"IF(D7=\"\",\"\",B21+1)","v":""},{"$f":"IF(D7=\"\",\"\",\"Ek Gostergeniz (Ödemeye Esas)\")","v":""},null,null,0,{"$f":"IF(D14='Bilgi Girişi'!C84,\"Geliştirme Ödeneği Alıyormusunuz / Oranı\",0)","v":0}]
[null,{"$f":"IF(D7=\"\",\"\",B22+1)","v":""},{"$f":"IF(D7=\"\",\"\",\"Emekliliğe Esas Ek Göstergeniz \")","v":""},null,null,0,{"$f":"IF(D7=\"\",\"\",\"Bireysel Emeklilik Kesintiniz Varmı (BES)\")","v":""}]
[null,{"$f":"IF(D7=\"\",\"\",B23+1)","v":""},{"$f":"IF(D7=\"\",\"\",\"Eski Emekliliğe Esas Ek Göstergeniz \")","v":""},null,null,0,{"$f":"IF(D7=\"\",\"\",IF(D14='Bilgi Girişi'!C83,\"Özelleştirmeden Gelen Personel mi ? / Eski Kurum Neti TL\",0))","v":""}]
[null,{"$f":"IF(D7=\"\",\"\",B24+1)","v":""},{"$f":"IF(D7=\"\",\"\",\"Varsa Bu Bordroda kullanılacak Raporlu Gun Sayınız\")","v":""},null,null,0,{"$f":"IF(D7=\"\",\"\",\"NormaL İcra Borcunuz  Varmı ?\")","v":""}]
[null,{"$f":"IF(D7=\"\",\"\",B25+1)","v":""},{"$f":"IF(D7=\"\",\"\",\"Özel Sigorta Tutarı TL (Hayat Sigortası)\")","v":""},null,null,0,{"$f":"IF(D7=\"\",\"\",\"Kefaletli Göreviniz Varmı ?\")","v":""}]
[null,{"$f":"IF(D7=\"\",\"\",B26+1)","v":""},{"$f":"IF(D7=\"\",\"\",\"Varsa Geçen Aylar Vergi Matrah Toplamınız\")","v":""}]
[null,{"$f":"IF(D7=\"\",\"\",B27+1)","v":""},{"$f":"IF(D7=\"\",\"\",\"Sendika Üyeliğiniz Var Mı ?\")","v":""}]
[null,{"$f":"IF(D7=\"\",\"\",B28+1)","v":""},{"$f":"IF(D7=\"\",\"\",\"Varsa Sakatlık İndirimi Durumu / Tutarı TL\")","v":""}]
[null,{"$f":"IF(D7=\"\",\"\",B29+1)","v":""},{"$f":"IF(D7=\"\",\"\",\"Tahhütlü İcra Borcunuz Varmı ? / Varsa Miktarını Giriniz\")","v":""}]
[]
[]
[null,null,"Mustafa İŞBİLİR / Afyon Kocatepe Ünv./İdari Ve Mali İşler/ Şube Müdürü / Aralık 2017"]
[null,null,"Tadilat ve düzenleme yapılmaktadır.Karşılaştığınız Sorunlar için 05427686825"]
[]
[]
[]
[]
[]
[]
[]
[]
[]
[]
[]
[]
[]
[]
[]
[]
[]
[]
[]
[]
[]
[]
[]
[]
[]
[]
[null,null,"Aylar"]
[null,null,"Ocak",null,{"$f":"CONCATENATE('Bilgi Girişi'!D17,'Bilgi Girişi'!E17)","v":""}]
[null,null,"Şubat",null,{"$f":"CONCATENATE('Bilgi Girişi'!D18,'Bilgi Girişi'!E18)","v":""}]
[null,null,"Mart",null,{"$f":"CONCATENATE('Bilgi Girişi'!D19,'Bilgi Girişi'!E19)","v":""}]
[null,null,"Nisan",null,"Evli Eşi Çalışıyor"]
[null,null,"Mayıs",null,"Evli Eşi Çalışmıyor"]
[null,null,"Haziran",null,"Evli Eşi Emekli V.İnd Yararlanıyor"]
[null,null,"Temmuz",null,"Bekar"]
[null,null,"Ağustos"]
[null,null,"Eylül"]
[null,null,"Ekim",null,"Rektör"]
[null,null,"Kasım",null,"3 Yıllık Profesör"]
[null,null,"Aralık",null,"Yeni Profesör"]
[null,null,null,null,"Doçent"]
[null,null,null,null,"Genel Sekreter"]
[null,null,"Evet",null,"İç Denetçi"]
[null,null,"Hayır",null,"Araştırmacı 1"]
[null,null,null,null,"Araştırmacı"]
[]
[null,null,"01/10/2008 Den Önceki Personel"]
[null,null,"01/10/2008 Den Sonraki Personel",null,"1.Derece"]
[null,null,null,null,"2.Derece"]
[null,null,"İdari Personel",null,"3.Derece"]
[null,null,"Akademik Personel"]
[]
[]
[]
[]
[]
[null,null,1,100]
[null,null,2,200]
[null,null,3,300]
[null,null,4,400]
[null,null,5,500]
[null,null,6,600]
[null,null,7,650]
[null,null,8,750]
[null,null,9,850]
[null,null,10,950]
[null,null,11,1050]
[null,null,12,1150]
[null,null,13,1250]
[null,null,14,1350]
[null,null,15,1450]
[null,null,16,1550]
[null,null,17,1650]
[null,null,18,1750]
[null,null,19,1850]
[null,null,20,1950]
[null,null,21,2050]
[null,null,22,2150]
[null,null,23,2200]
[null,null,24,2300]
[null,null,25,2400]
[null,null,26,2500]
[null,null,27,2600]
[null,null,28,2700]
[null,null,29,2800]
[null,null,30,2900]
[null,null,null,3000]
[null,null,null,3100]
[null,null,null,3200]
[null,null,null,3300]
[null,null,null,3400]
[null,null,null,3500]
[null,null,null,3600]
[null,null,null,3700]
[null,null,null,3800]
[null,null,null,3900]
[null,null,null,4000]
[null,null,null,4100]
[null,null,null,4200]
[null,null,null,4300]
[null,null,null,4400]
[null,null,null,4500]
[null,null,null,4600]
[null,null,null,4700]
[null,null,null,4800]
[null,null,null,4900]
[null,null,null,5000]
[null,null,null,5100]
[null,null,null,5200]
[null,null,null,5300]
[null,null,null,5400]
[null,null,null,5500]
[null,null,null,5600]
[null,null,null,5700]
[null,null,null,5800]
[null,null,null,5900]
[null,null,null,6000]
[null,null,null,6100]
[null,null,null,6200]
[null,null,null,6300]
[null,null,null,6400]
[null,null,null,6500]

{"sheet":"Bordro","index":1,"n_rows":38,"n_cols":7,"rows_kept":38,"cut":false,"hidden":false,"merged":[[4,2,4,6],[5,2,5,6],[6,2,6,6],[7,1,7,2],[7,3,7,4],[7,5,7,6]]}
[]
[]
[]
[]
[null,"Kurumu / Birimi",{"$f":"IF(C9=0,0,CONCATENATE(+'Bilgi Girişi'!D3,\"  \",'Bilgi Girişi'!J3,\"  \",'Bilgi Girişi'!F4))","v":0},null,null,"Gelir Toplamı","2182.92"]
[null,"Ait Olduğu Ay",{"$f":"+'Bilgi Girişi'!D4","v":0},null,null,"Kesinti Toplamı","495.05"]
[null,"Bütçe Yılı",{"$f":"IF(C9=0,0,+'Bilgi Girişi'!E4)","v":0},null,null,"Net �denen","1687.87"]
[null,"PERSONEL BİLGİLERİ","10636518190","GELİRİN",null,"KESİNTİNİN"]
[null,{"$f":"IF(C9=0,0,\"T.C. Kimlik Numarası\")","v":0},{"$f":"+'Bilgi Girişi'!D8","v":0},"ADI","T U T A R I","ADI","T U T A R I"]
[null,{"$f":"IF(C10=0,0,\"Adı Soyadı\")","v":0},{"$f":"+'Bilgi Girişi'!D11","v":0},{"$f":"IF(E10=0,0,\"Aylık Tutar\")","v":0},{"$f":"+Hesaplamalar!E6","v":0},{"$f":"IF(G10=0,0,\"Gelir Vergisi\")","v":0},{"$f":"+Hesaplamalar!U9","v":0}]
[null,{"$f":"IF(C11=0,0,\"Kurum Sicil Numarası\")","v":0},{"$f":"+'Bilgi Girişi'!D9","v":0},{"$f":"IF(E11=0,0,\"Ek Gosterge\")","v":0},{"$f":"+Hesaplamalar!E14","v":0},{"$f":"IF(G11=0,0,\"Damga Vergisi\")","v":0},{"$f":"+Hesaplamalar!U12","v":0}]
[null,{"$f":"IF(C12=0,0,\"Emekli sicil Numarası\")","v":0},{"$f":"+'Bilgi Girişi'!D10","v":0},{"$f":"IF(E12=0,0,\"Taban Aylık\")","v":0},{"$f":"+Hesaplamalar!E10","v":0},{"$f":"IF(G12=0,0,\"Emekli Keseneği (Devlet) %20\")","v":0},{"$f":"+Hesaplamalar!U13","v":0}]
[null,{"$f":"IF(C13=0,0,\"Hizmet Sınıfı / Ünvanı\")","v":0},{"$f":"+'Bilgi Girişi'!D15","v":0},{"$f":"IF(E13=0,0,\"Kıdem Aylık\")","v":0},{"$f":"+Hesaplamalar!E12","v":0},{"$f":"IF(G13=0,0,\"Emekli Keseneği (Kişi) %16\")","v":0},{"$f":"+Hesaplamalar!U14","v":0}]
[null,{"$f":"IF(C14=0,0,\"Medeni Hali / Çocuk Sayısı\")","v":0},{"$f":"+'Bilgi Girişi'!D12","v":0},{"$f":"IF(E14=0,0,\"Yan Odeme\")","v":0},{"$f":"IF(Hesaplamalar!I24>0,Hesaplamalar!L27,+Hesaplamalar!I8)","v":0},{"$f":"IF(G14=0,0,+D16)","v":0},{"$f":"+E16","v":0}]
[null,{"$f":"IF(C15=0,0,\"Kıdem  Yılı\")","v":0},{"$f":"+'Bilgi Girişi'!D20","v":0},{"$f":"IF(E15=0,0,\"Em.Kes.Karşılığı %20\")","v":0},{"$f":"+Hesaplamalar!U13","v":0},{"$f":"IF(G15=0,0,+D17)","v":0},{"$f":"+E17","v":0}]
[null,{"$f":"IF(C16=\" / \",0,\"Maaş Derece / Kademe\")","v":0},{"$f":"CONCATENATE('Bilgi Girişi'!D17,\" / \",'Bilgi Girişi'!E17)","v":" / "},{"$f":"IF(E16=0,0,+Hesaplamalar!T31)","v":0},{"$f":"+Hesaplamalar!U31","v":0},{"$f":"IF(G16=0,0,\"Gen.Sag.Sig.Pir.(Devlet) %12\")","v":0},{"$f":"+Hesaplamalar!U17","v":0}]
[null,{"$f":"IF(C15=0,0,\"Ek Gosterge (Ödemeye Esas)\")","v":0},{"$f":"+'Bilgi Girişi'!D22","v":0},{"$f":"IF(E17=0,0,+Hesaplamalar!T32)","v":0},{"$f":"+Hesaplamalar!U32","v":0},{"$f":"+D20","v":0},{"$f":"+E20","v":0}]
[null,{"$f":"IF(C18=\" / \",0,\"Derece / Kademe (Emekliliğe Esas)\")","v":0},{"$f":"CONCATENATE('Bilgi Girişi'!D18,\" / \",'Bilgi Girişi'!E18)","v":" / "},{"$f":"IF(E18=0,0,\"Makam Tazminatı\")","v":0},{"$f":"+Hesaplamalar!I10","v":0},{"$f":"IF(G18=0,0,+Hesaplamalar!D30)","v":0},{"$f":"+E20","v":0}]
[null,{"$f":"IF(C19=0,0,\"Ek Gösterge (Emekliliğe Esas)\")","v":0},{"$f":"+'Bilgi Girişi'!D23","v":0},{"$f":"IF(E19=0,0,\"Gen.Sag.Sig.Pir.(Devlet) %12\")","v":0},{"$f":"+Hesaplamalar!U30","v":0},{"$f":"IF(G19=0,0,+Hesaplamalar!T15)","v":0},{"$f":"+Hesaplamalar!U15","v":0}]
[null,{"$f":"IF(C20=0,0,IF('Bilgi Girişi'!D25=0,0,\"Raporlu Gun\"))","v":0},{"$f":"+'Bilgi Girişi'!D2","v":0},{"$f":"IF(E20=0,0,+Hesaplamalar!D31)","v":0},{"$f":"+Hesaplamalar!E31","v":0},{"$f":"IF(G20=0,0,IF('Bilgi Girişi'!D28=\"\",0,\"Sendika Aidatı\"))","v":0},{"$f":"+Hesaplamalar!U19","v":0}]
[null,{"$f":"IF(C21=0,0,IF('Bilgi Girişi'!D26=0,0,\"Sigorta (Özel Sağlık)\"))","v":0},{"$f":"+'Bilgi Girişi'!D26","v":0},{"$f":"IF(E21=0,0,IF(Hesaplamalar!E17=0,0,\"Aile Yardımı\"))","v":0},{"$f":"Hesaplamalar!E17","v":0},{"$f":"IF(G21=0,0,IF('Bilgi Girişi'!D30=\"EVET\",\"Taahütlü İcra Kesintisi\",0))","v":0},{"$f":"+Hesaplamalar!U20","v":0}]
[null,{"$f":"IF(C22=0,0,\"Aylık Vergi Matrahı\")","v":0},{"$f":"+Hesaplamalar!U5","v":0},{"$f":"IF(E22=0,0,IF('Bilgi Girişi'!C13=0,0,\"ÇocukYardımı\"))","v":0},{"$f":"+Hesaplamalar!E18","v":0},{"$f":"IF(G22=0,0,IF('Bilgi Girişi'!H25=\"Evet\",\"Normai İcra Kesintisi\",0))","v":0},{"$f":"+Hesaplamalar!U21","v":0}]
[null,{"$f":"IF(C23=0,0,\"Geçen Aylar Vergi Matrahı Toplamı\")","v":0},{"$f":"+'Bilgi Girişi'!D27","v":0},{"$f":"IF(E23=0,0,\"Özel Hizmet Tazminatı\")","v":0},{"$f":"IF(Hesaplamalar!I24>0,Hesaplamalar!L26,+Hesaplamalar!I6)","v":0},{"$f":"IF('Bilgi Girişi'!H26=\"Evet\",\"Kefalet Kesintisi\",0)","v":0},{"$f":"+Hesaplamalar!U22","v":0}]
[null,{"$f":"IF(C24=0,0,\"Asgari Geçim İndirimi Tutarı\")","v":0},{"$f":"+Hesaplamalar!U33","v":0},{"$f":"IF(E24=0,0,IF('Bilgi Girişi'!H13=0,0,\"Yabancı Dil Tazminatı\"))","v":0},{"$f":"((IF(Hesaplamalar!I16=0,Hesaplamalar!I18,Hesaplamalar!I16)))","v":0},{"$f":"IF(G24=0,0,+Hesaplamalar!T23)","v":0},{"$f":"+Hesaplamalar!U23","v":0}]
[null,null,null,{"$f":"IF(E25=0,0,+Hesaplamalar!H13)","v":0},{"$f":"+Hesaplamalar!I13","v":0},{"$f":"IF(G25=0,0,+Hesaplamalar!T18)","v":0},{"$f":"+Hesaplamalar!U18","v":0}]
[null,null,null,{"$f":"IF(E26=0,0,IF(Hesaplamalar!I21=0,0,\"Ek Öde.(666 KHK\"))","v":0},{"$f":"+Hesaplamalar!I21","v":0}]
[null,null,null,{"$f":"IF(E27=0,0,+Hesaplamalar!H19)","v":0},{"$f":"+Hesaplamalar!I19","v":0},"Gelir Toplamı",{"$f":"SUM(E10:E34)","v":0}]
[null,null,null,{"$f":"IF(E28=0,0,+Hesaplamalar!L7)","v":0},{"$f":"+Hesaplamalar!M7","v":0},"Kesinti Toplamı",{"$f":"SUM(G10:G25)","v":0}]
[null,null,null,{"$f":"IF(E29=0,0,+Hesaplamalar!L8)","v":0},{"$f":"+Hesaplamalar!M8","v":0},"Net Ödenen",{"$f":"G27-G28","v":0}]
[null,null,null,{"$f":"IF(E30=0,0,+Hesaplamalar!L10)","v":0},{"$f":"+Hesaplamalar!M10","v":0}]
[null,null,null,{"$f":"IF(E31=0,0,+Hesaplamalar!L6)","v":0},{"$f":"+Hesaplamalar!M6","v":0},"Toplam Ödenen",{"$f":"G29","v":0}]
[null,null,null,{"$f":"IF(E32=0,0,IF('Bilgi Girişi'!D28=\"\",0,\"Top.Söz.İkram.\"))","v":0},{"$f":"+Hesaplamalar!M11","v":0}]
[null,null,null,{"$f":"IF(E33=0,0,+Hesaplamalar!H14)","v":0},{"$f":"+Hesaplamalar!I14","v":0}]
[null,null,null,{"$f":"IF(E34=0,0,+Hesaplamalar!L9)","v":0},{"$f":"+Hesaplamalar!M9","v":0}]
[]
[]
[]
[null,{"$f":"+'Bilgi Girişi'!C35","v":0}]

{"sheet":"Hesaplamalar","index":2,"n_rows":37,"n_cols":21,"rows_kept":37,"cut":false,"hidden":false,"merged":[[11,4,11,5],[5,16,5,17],[6,12,6,13],[5,8,5,9],[5,4,5,5],[8,16,8,17],[8,12,8,13],[7,8,7,9],[30,4,30,5],[6,4,6,5],[3,15,3,17],[7,16,7,17],[11,16,11,17],[17,4,17,5],[3,3,3,5],[4,11,4,13],[4,7,4,9],[11,8,11,9],[10,4,10,5],[6,8,6,9],[7,4,7,5],[26,4,26,5],[27,4,27,5],[6,16,6,17],[18,8,18,9],[25,3,25,5],[22,4,22,5],[15,3,15,5],[12,8,12,9],[16,4,16,5],[20,3,20,5],[23,4,23,5],[20,8,20,9],[12,4,12,5],[17,8,17,9],[13,8,13,9],[15,8,15,9],[16,8,16,9],[13,4,13,5],[23,9,28,10],[29,4,29,5],[2,19,2,20],[4,16,4,17],[4,4,4,5],[21,3,21,5],[14,8,14,9],[12,16,12,17],[9,12,9,13],[10,12,10,13],[7,12,7,13],[5,12,5,13],[8,4,8,5],[9,4,9,5],[8,8,8,9],[9,8,9,9],[10,8,10,9]]}
[]
[]
[null,null,null,null,null,null,null,null,null,null,null,null,null,null,null,null,null,null,null,"KESİNTİLER"]
[null,null,null,"Temel Maaşlar",null,null,null,null,null,null,null,null,null,null,null,"Emekli Keseneği Hesaplamaya İlşikin Bölüm",null,null,null,"Kesintinin Adı","Tutarı"]
[null,null,null,{"$f":"IF('Bilgi Girişi'!D7=\"\",\"\",\"Maaş Göstergesi\")","v":""},{"$f":"IF(ISERROR(VLOOKUP('Bilgi Girişi'!E62,'Derece Kademe'!N17:O287,2,FALSE)),0,VLOOKUP('Bilgi Girişi'!E62,'Derece Kademe'!N17:O287,2,FALSE))","v":0},null,null,"Zam ve Tazminatlar",null,null,null,"Ödenekler",null,null,null,{"$f":"IF('Bilgi Girişi'!D7='Bilgi Girişi'!C80,\"Em.Kes.Katkı Oranı % Her İki Ek Göst Eşit Olanlar\",0)","v":0},{"$f":"IF('Bilgi Girişi'!D22>6400,215,IF(P5=0,0,+S5))","v":0},null,{"$f":"LARGE('Değerler Tablosu'!I45:I51,1)","v":55},{"$f":"IF('Bilgi Girişi'!D7=\"\",\"\",\"Bu Ay Vergi Matrahınız\")","v":""},{"$f":"IF(I24>0,SUM((E6+E14+E10+E12+L27+M6)-(U14+'Bilgi Girişi'!D26+U6+U18+U15+U19+E30)),SUM((E6+E14+E10+E12+I8+M6)-(U14+'Bilgi Girişi'!D26+U6+U18+U15+U19+E30)))","v":0}]
[null,null,null,{"$f":"IF('Bilgi Girişi'!D7=\"\",\"\",\"Aylık Tutar (Ödemeye Esas)\")","v":""},{"$f":"ROUND((IF(ISERROR(((E5*'Değerler Tablosu'!E6)/'Bilgi Girişi'!I3)*'Bilgi Girişi'!I4),0,(E5*'Değerler Tablosu'!E6)/'Bilgi Girişi'!I3)*'Bilgi Girişi'!I4),2)","v":0},null,null,{"$f":"IF('Bilgi Girişi'!D7=\"\",\"\",IF('Bilgi Girişi'!G7=0,0,\"Ödemeye Esas Özel Hizmet Tazminatı Tutarı\"))","v":""},{"$f":"ROUND(((((9500*'Değerler Tablosu'!E6)/100)*'Bilgi Girişi'!H7)/'Bilgi Girişi'!I3)*'Bilgi Girişi'!I4,2)","v":0},null,null,{"$f":"IF('Bilgi Girişi'!H17=\"Evet\",\"İdari Görev Tutarı\",0)","v":0},{"$f":"ROUND((((E5+'Bilgi Girişi'!D22)*'Değerler Tablosu'!E6)*'Bilgi Girişi'!I17)/100,2)","v":0},null,null,{"$f":"IF('Bilgi Girişi'!D7='Bilgi Girişi'!C80,\"Em.Kes.Katkı Tutarı Her İki Göstergesi Eşit Olanlar\",0)","v":0},{"$f":"IF(B7=B8,0,ROUND(IF(P6=0,0,('Değerler Tablosu'!E6*9500)*Q5)/100,2))","v":0},null,null,{"$f":"IF('Bilgi Girişi'!D7=\"\",\"\",\"Sakatlık İndirimi  Tutarı TL\")","v":""},{"$f":"IF(ISERROR(VLOOKUP('Bilgi Girişi'!D29,'Değerler Tablosu'!I31:J33,2,FALSE)),0,VLOOKUP('Bilgi Girişi'!D29,'Değerler Tablosu'!I31:J33,2,FALSE))","v":0}]
[null,{"$f":"CONCATENATE('Bilgi Girişi'!D7,'Bilgi Girişi'!I2)","v":""},null,{"$f":"IF('Bilgi Girişi'!D7=\"\",\"\",\"Emekliye Esas Aylık Göstergesi\")","v":""},{"$f":"IF(B7=B8,0,IF(ISERROR(VLOOKUP('Bilgi Girişi'!E63,'Derece Kademe'!N17:O290,2,FALSE)),0,VLOOKUP('Bilgi Girişi'!E63,'Derece Kademe'!N17:O290,2,FALSE)))","v":0},null,null,{"$f":"IF('Bilgi Girişi'!D7=\"\",\"\",IF('Bilgi Girişi'!G8=0,0,\"Emkliye Esas Özel Hizmet Tazminatı Tutarı\"))","v":""},{"$f":"ROUND(((((9500*'Değerler Tablosu'!E6)/100)*'Bilgi Girişi'!H7)/30)*'Bilgi Girişi'!I4,2)","v":0},null,null,{"$f":"IF('Bilgi Girişi'!G18=0,0,\"Üniversite Ödeneği Tutarı\")","v":0},{"$f":"IF(L7=0,0,ROUND(IF('Bilgi Girişi'!H18=\"\",0,(((9500*'Değerler Tablosu'!E6)*'Bilgi Girişi'!H18)/100)/'Bilgi Girişi'!I3)*'Bilgi Girişi'!I4,2))","v":0},null,null,{"$f":"IF(Q7=0,0,\"Emekliye Esas Ek Gösterge Tutarı Ödemeye Esas Ek Göstergesi Aynı Olanlar\")","v":0},{"$f":"IF(B7=B8,0,IF('Bilgi Girişi'!D22='Bilgi Girişi'!D23,('Bilgi Girişi'!D23*'Değerler Tablosu'!E6),0))","v":0},null,null,{"$f":"IF('Bilgi Girişi'!D7=\"\",\"\",\"Toplam Vergi Matrahınız\")","v":""},{"$f":"'Bilgi Girişi'!D27+U5","v":0}]
[null,"01/10/2008 Den Önceki PersonelEvet",null,{"$f":"IF('Bilgi Girişi'!D7=\"\",\"\",\"Eski Emekliye Esas Aylık Göstergesi\")","v":""},{"$f":"IF(B8=B9,0,IF(ISERROR(VLOOKUP('Bilgi Girişi'!E64,'Derece Kademe'!N17:O290,2,FALSE)),0,VLOOKUP('Bilgi Girişi'!E64,'Derece Kademe'!N17:O290,2,FALSE)))","v":0},null,null,{"$f":"IF('Bilgi Girişi'!D7=\"\",\"\",IF('Bilgi Girişi'!G11=0,0,\"Ödenecek Yan Odemeler Toplamı\"))","v":""},{"$f":"ROUND((('Bilgi Girişi'!H11*'Değerler Tablosu'!E7)/'Bilgi Girişi'!I3)*'Bilgi Girişi'!I4,2)","v":0},null,null,{"$f":"IF('Bilgi Girişi'!G18=0,0,\"Eğitim Öğretim Ödeneği Tutarı\")","v":0},{"$f":"IF(L8=0,0,ROUND(IF('Bilgi Girişi'!H19=\"Evet\",(((9500*'Değerler Tablosu'!E6)/12)/'Bilgi Girişi'!I3)*'Bilgi Girişi'!I4,0),2))","v":0},null,null,{"$f":"IF('Bilgi Girişi'!D7='Bilgi Girişi'!C80,\"Em.Kes.Katkı Oranı % Emekli Ek Göst Farklı Olanlar\",0)","v":0},{"$f":"IF(P8=0,0,IF('Bilgi Girişi'!D24>6400,215,+S8))","v":0},null,{"$f":"LARGE('Değerler Tablosu'!K45:K51,1)","v":55},{"$f":"IF('Bilgi Girişi'!D7=\"\",\"\",\"Geçerli Vergi Oranınız %\")","v":""},{"$f":"IF(U7=0,0,+Vergi!C21)","v":0}]
[null,{"$f":"IF(B8=B8,1,0)","v":1},null,{"$f":"IF('Bilgi Girişi'!D7=\"\",\"\",\"Aylık Tutar Emekliye Esas\")","v":""},{"$f":"ROUND((IF((ISERROR((E8*'Değerler Tablosu'!E6)/'Bilgi Girişi'!I3)*'Bilgi Girişi'!I4),0,(E8*'Değerler Tablosu'!E6)/30)*'Bilgi Girişi'!I4),2)","v":0},null,null,{"$f":"IF('Bilgi Girişi'!D7=\"\",\"\",IF(I9<=0,0,\"Makam Tazminatı Puanı\"))","v":""},{"$f":"IF(ISERROR(VLOOKUP('Bilgi Girişi'!D15,'Değerler Tablosu'!I8:J16,2,FALSE)),0,VLOOKUP('Bilgi Girişi'!D15,'Değerler Tablosu'!I8:J16,2,FALSE))","v":0},null,null,{"$f":"IF('Bilgi Girişi'!G20>0,\"Ödemeye Easas Akademik Teşvik Ödeneği Tutarı\",0)","v":0},{"$f":"ROUND(((('Değerler Tablosu'!E6*9500)*'Bilgi Girişi'!H21/100)*('Bilgi Girişi'!H20)/100),2)","v":0},null,null,{"$f":"IF(Q9=0,0,IF('Bilgi Girişi'!D7='Bilgi Girişi'!C80,\"Em.Kes.Katkı Tutarı Emekli Ek  Göstergesi Farklı Olanlar\",0))","v":0},{"$f":"IF(B7=B8,0,ROUND((('Değerler Tablosu'!E6*9500)*Q8)/100,2))","v":0},null,null,{"$f":"IF('Bilgi Girişi'!D7=\"\",\"\",\"Gelir Vergisi\")","v":""},{"$f":"ROUND(IF(U5>0,(U5*U8)/100,0)-U33,2)","v":0}]
[null,null,null,{"$f":"IF('Bilgi Girişi'!D7=\"\",\"\",\"Ödemeye Esas Taban Aylık Tutarı\")","v":""},{"$f":"IF('Bilgi Girişi'!D17=\"\",0,ROUND((('Değerler Tablosu'!E8*'Değerler Tablosu'!E9)/'Bilgi Girişi'!I3)*'Bilgi Girişi'!I4,2))","v":0},null,null,{"$f":"IF('Bilgi Girişi'!D7=\"\",\"\",IF(I10<=0,0,\"Makam Tazminatı Tutarı\"))","v":""},{"$f":"ROUND(IF(I9>0,I9*'Değerler Tablosu'!E6,0),2)","v":0},null,null,{"$f":"IF('Bilgi Girişi'!G22=0,0,\"Geliştirme Ödeneği Tutarı\")","v":0},{"$f":"IF(L10=0,0,ROUND(IF('Bilgi Girişi'!H22=\"Evet\",(((E5+'Bilgi Girişi'!D22)*'Değerler Tablosu'!E6)*'Bilgi Girişi'!I22)/100,0),2))","v":0}]
[null,null,null,{"$f":"IF('Bilgi Girişi'!D7=\"\",\"\",\"Emekliye Esas Taban Aylık Tutarı\")","v":""},{"$f":"IF('Bilgi Girişi'!D17=\"\",0,ROUND((('Değerler Tablosu'!E8*'Değerler Tablosu'!E9)/30)*'Bilgi Girişi'!I4,2))","v":0},null,null,{"$f":"IF('Bilgi Girişi'!D7=\"\",\"\",IF(I11<=0,0,IF('Bilgi Girişi'!D15='Bilgi Girişi'!E71,\"Temsil Tazminatı Puanı\",\"Görev Tazminatı Puanı\")))","v":""},{"$f":"IF(ISERROR(VLOOKUP(I9,'Değerler Tablosu'!I22:L28,4,FALSE)),0,VLOOKUP(I9,'Değerler Tablosu'!I22:L28,4,FALSE))","v":0},null,null,{"$f":"IF('Bilgi Girişi'!D28=\"\",0,IF('Bilgi Girişi'!D4='Bilgi Girişi'!C62,\"Ödemeye Esas Top.Söz.İkram.\",IF('Bilgi Girişi'!D4='Bilgi Girişi'!C65,\"Ödemeye Esas Top.Söz.İkram.\",IF('Bilgi Girişi'!D4='Bilgi Girişi'!C68,\"Ödemeye Esas Top.Söz.İkram.\",IF('Bilgi Girişi'!D4='Bilgi Girişi'!C71,\"Ödemeye Easas Top.Söz.İkram.\",0)))))","v":0},{"$f":"IF('Bilgi Girişi'!H12=\"Evet\",0,IF(B7=B8,0,ROUND(IF('Bilgi Girişi'!D28=\"\",0,IF('Bilgi Girişi'!D4='Bilgi Girişi'!C62,('Değerler Tablosu'!E14*'Değerler Tablosu'!E6),IF('Bilgi Girişi'!D4='Bilgi Girişi'!C65,('Değerler Tablosu'!E14*'Değerler Tablosu'!E6),IF('Bilgi Girişi'!D4='Bilgi Girişi'!C68,('Değerler Tablosu'!E14*'Değerler Tablosu'!E6),IF('Bilgi Girişi'!D4='Bilgi Girişi'!C71,('Değerler Tablosu'!E14*'Değerler Tablosu'!E6),0))))),2)))","v":0},null,null,null,null,null,null,{"$f":"+D31","v":""},{"$f":"IF('Bilgi Girişi'!D23='Bilgi Girişi'!D24,0,ROUND((E12-E13)+(Q12-Q13),2))","v":0}]
[null,null,null,{"$f":"IF('Bilgi Girişi'!D7=\"\",\"\",\"Kıdem Aylık\")","v":""},{"$f":"ROUND(((('Bilgi Girişi'!D20*20)*'Değerler Tablosu'!E6)/'Bilgi Girişi'!I3)*'Bilgi Girişi'!I4,2)","v":0},null,null,{"$f":"IF('Bilgi Girişi'!D7=\"\",\"\",IF(I12<=0,0,IF('Bilgi Girişi'!D15='Bilgi Girişi'!E71,\"Temsil Tazminatı Puanı Ödemeye Esas\",\"GörevTazminatı Puanı ÖdemeyeEsas\")))","v":""},{"$f":"IF(AND('Bilgi Girişi'!D14='Bilgi Girişi'!C84,'Bilgi Girişi'!H16>0),(I11*0.8),IF(AND('Bilgi Girişi'!D14='Bilgi Girişi'!C83,'Bilgi Girişi'!H16>0),(I11*0.8),IF(AND('Bilgi Girişi'!D14='Bilgi Girişi'!C84,'Bilgi Girişi'!H15=\"Evet\"),+I11,IF('Bilgi Girişi'!H15=\"Evet\",(I11*0.8),0))))","v":0},null,null,null,null,null,null,{"$f":"IF(Q12=0,0,\"Emekliye Esas Ek Gostergesi Farklı ise Emekli Kes. Tabi Dev.Kat. Ek Gösterge Tutarı\")","v":0},{"$f":"ROUND(IF('Bilgi Girişi'!D22<>'Bilgi Girişi'!D23,('Bilgi Girişi'!D22*'Değerler Tablosu'!E6),0),2)","v":0},null,null,{"$f":"IF('Bilgi Girişi'!D7=\"\",\"\",\"Damga Vergisi\")","v":""},{"$f":"IF(I24>0,ROUND((E6+E14+E10+E12+L27+L26+I13+I21+M11+I10+I16+I19+M7+M8+M10+M6+M9+I18)*Vergi!D11,2),ROUND((E6+E14+E10+E12+I8+I6+I13+I21+M11+I10+I16+I19+M7+M8+M10+M6+M9+I18)*Vergi!D11,2))","v":0}]
[null,null,null,{"$f":"IF('Bilgi Girişi'!D7=\"\",\"\",\"Eski Kıdem Aylık\")","v":""},{"$f":"ROUND(((('Bilgi Girişi'!D21*20)*'Değerler Tablosu'!E6)/'Bilgi Girişi'!I3)*'Bilgi Girişi'!I4,2)","v":0},null,null,{"$f":"IF('Bilgi Girişi'!D7=\"\",\"\",IF(I13<=0,0,IF('Bilgi Girişi'!D15='Bilgi Girişi'!E71,\"Temsil TazminatıTutarı\",\"GörevTazminatıTutarı\")))","v":""},{"$f":"ROUND(('Değerler Tablosu'!E6*I12),2)","v":0},null,null,null,null,null,null,{"$f":"IF(Q13=0,0,\"Emekliye Esas Ek Gostergesi Farklı ise Emekli Kes.Tabi Şahıs Ek Gösterge Tutarı\")","v":0},{"$f":"ROUND(IF('Bilgi Girişi'!D22<>'Bilgi Girişi'!D23,('Bilgi Girişi'!D24*'Değerler Tablosu'!E6),0),2)","v":0},null,null,{"$f":"IF('Bilgi Girişi'!D7=0,0,IF('Bilgi Girişi'!D7='Bilgi Girişi'!C81,0,\"Emekli Keseneği (Devlet) Katkısı % 20\"))","v":0},{"$f":"+U27","v":0}]
[null,null,null,{"$f":"IF('Bilgi Girişi'!D7=\"\",\"\",\"Ek Gosterge Ödemeye Esas\")","v":""},{"$f":"ROUND((('Bilgi Girişi'!D22*'Değerler Tablosu'!E6)/'Bilgi Girişi'!I3)*'Bilgi Girişi'!I4,2)","v":0},null,null,{"$f":"IF('Bilgi Girişi'!D7=\"\",\"\",IF('Bilgi Girişi'!H24=\"evet\",\"Ödemeye Esas Özelleştirme Tazminatı Tutarı\",0))","v":""},{"$f":"IF(H14=0,0,IF('Bilgi Girişi'!I24=0,0,'Bilgi Girişi'!I24-U36))","v":0},null,null,null,null,null,null,null,null,null,null,{"$f":"IF('Bilgi Girişi'!D7=0,0,IF('Bilgi Girişi'!D7='Bilgi Girişi'!C81,0,\"Emekli Keseneği (Kişi) %16\"))","v":0},{"$f":"ROUND((U29*0.16)+((U29-U26)*0.2),2)","v":0}]
[null,null,null,null,null,null,null,{"$f":"IF('Bilgi Girişi'!D7=\"\",\"\",IF('Bilgi Girişi'!D14='Bilgi Girişi'!C84,0,IF('Bilgi Girişi'!H12=\"Evet\",\"İdari Pers.Dil Tazminatı Puanı\",0)))","v":""},{"$f":"IF(ISERROR(IF(H15=0,0,VLOOKUP('Bilgi Girişi'!D15,'Değerler Tablosu'!N7:P15,3,FALSE))),0,IF(H15=0,0,VLOOKUP('Bilgi Girişi'!D15,'Değerler Tablosu'!N7:P15,3,FALSE)))","v":0},null,null,null,null,null,null,null,null,null,null,{"$f":"IF(T31=0,0,\"Mal.Yaş.Ölüm Sig   % 9 (Şahıs)\")","v":0},{"$f":"IF(T15=0,0,ROUND((E9+Q12+E11+E12+I7+M7+E14)*0.09,2))","v":0}]
[null,null,null,"Sosyal Haklar",null,null,null,{"$f":"IF('Bilgi Girişi'!D7=\"\",\"\",IF(H15=0,0,\"Ödemeye Esas Dil Tazminatı Tutarı\"))","v":""},{"$f":"ROUND((I15*'Değerler Tablosu'!E6),2)","v":0},null,null,null,null,null,null,null,null,null,null,{"$f":"IF('Bilgi Girişi'!D7=0,0,IF('Bilgi Girişi'!D7='Bilgi Girişi'!C81,0,\"Artış %100 (Devlet + Kişi)\"))","v":0},{"$f":"0*1","v":0}]
[null,null,null,{"$f":"IF('Bilgi Girişi'!D12=\"Evli Eşi Çalışmıyor\",\"Ödemeye Esas Aile Yardımı Tutarı \",0)","v":0},{"$f":"IF('Bilgi Girişi'!I2=\"Evet\",0,ROUND(IF('Bilgi Girişi'!D12='Bilgi Girişi'!E66,('Değerler Tablosu'!E6*'Değerler Tablosu'!E10),0),2))","v":0},null,null,{"$f":"IF('Bilgi Girişi'!D14='Bilgi Girişi'!C83,0,IF('Bilgi Girişi'!H13=\"Evet\",\"Akademik Pers.Dil Tazminatı Puanı\",0))","v":0},{"$f":"IF(ISERROR(IF(H17=0,0,VLOOKUP('Bilgi Girişi'!I13,'Değerler Tablosu'!O7:P17,2,FALSE))),0,IF(H17=0,0,VLOOKUP('Bilgi Girişi'!I13,'Değerler Tablosu'!O7:P17,2,FALSE)))","v":0},null,null,null,null,null,null,null,null,null,null,{"$f":"IF('Bilgi Girişi'!D7=0,0,IF('Bilgi Girişi'!D7='Bilgi Girişi'!C81,0,\"Gen.Sag.Sig.Pir.(% 12 Devlet)\"))","v":0},{"$f":"+U30","v":0}]
[null,null,null,{"$f":"IF('Bilgi Girişi'!D13+'Bilgi Girişi'!E13<=0,0,\"Ödemeye Esas Çocuk Yardımı Tutarı \")","v":0},{"$f":"IF('Bilgi Girişi'!I2=\"Evet\",0,ROUND(((('Bilgi Girişi'!D13*'Değerler Tablosu'!E11)+('Bilgi Girişi'!E13*'Değerler Tablosu'!E12))*'Değerler Tablosu'!E6),2))","v":0},null,null,{"$f":"IF(H17=0,0,\"Ödemeye Esas Akademik Dil Tazminatı Tutarı\")","v":0},{"$f":"ROUND(((I17*'Değerler Tablosu'!E6)/'Bilgi Girişi'!I3)*'Bilgi Girişi'!I4,2)","v":0},null,null,null,null,null,null,null,null,null,null,{"$f":"IF(T32=0,0,\"Gen.Sag.Sig.Pir.(Kişi) %5\")","v":0},{"$f":"IF(T18=0,0,ROUND((E9+Q12+E11+E12+I7+M7+E14)*0.05,2))","v":0}]
[null,null,null,null,null,null,null,{"$f":"IF('Bilgi Girişi'!G14=0,0,\"Yüksek Öğrenim Tazminatı Tutarı\")","v":0},{"$f":"IF(H19=0,0,ROUND(IF('Bilgi Girişi'!H14=\"\",0,((((9500*'Değerler Tablosu'!E6)*'Bilgi Girişi'!H14)/'Bilgi Girişi'!I3)*'Bilgi Girişi'!I4)/100),2))","v":0},null,null,null,null,null,null,null,null,null,null,{"$f":"IF('Bilgi Girişi'!D28=\"\",0,\"Sendika Aidatı Tutarı\")","v":0},{"$f":"IF('Bilgi Girişi'!I2=\"Evet\",0,IF('Bilgi Girişi'!D28=\"\",0,ROUND((E6+E14+E10+E12+I8+I6+I13+I21+M11+I10+I16+I19+M7+M8+M10+I18+M9)*Vergi!D12,2)))","v":0}]
[null,null,null,null,null,null,null,null,null,null,null,null,null,null,null,null,null,null,null,{"$f":"IF('Bilgi Girişi'!D30=\"Evet\",\"Taahütlü İcra Kesintisi\",0)","v":0},{"$f":"IF('Bilgi Girişi'!E30<=0,0,+'Bilgi Girişi'!E30)","v":0}]
[null,null,null,"Sosyal Güvenlik Primleri / Emekli Kesenekleri",null,null,null,{"$f":"IF('Bilgi Girişi'!H16=0,0,\"Ödemeye Esas Ek Ödeme Tutarı (666 KHK)\")","v":0},{"$f":"IF('Bilgi Girişi'!H15=\"Evet\",0,ROUND(IF('Bilgi Girişi'!H16<=0,0,(((9500*'Değerler Tablosu'!E6)*'Bilgi Girişi'!H16)/'Bilgi Girişi'!I3)*'Bilgi Girişi'!I4)/100,2))","v":0},null,null,null,null,null,null,null,null,null,null,{"$f":"IF('Bilgi Girişi'!H25=\"Evet\",\"Normail İcra Borcu\",0)","v":0},{"$f":"ROUND(IF(T21=0,0,SUM(E6+E14+E10+E12+I8+I6+I21+I10+I13+I16+I19+M7+M8+M10)*0.25),2)","v":0}]
[null,null,null,"Malullül Yaşlılık ve Ölüm Siğortası",null,null,null,null,null,null,null,null,null,null,null,null,null,null,null,{"$f":"IF('Bilgi Girişi'!H26=\"Evet\",\"Normal Kefalet Kesintisi\",0)","v":0},{"$f":"ROUND(IF(T22=0,0,(100*'Değerler Tablosu'!E6)),2)","v":0}]
[null,null,null,{"$f":"IF('Bilgi Girişi'!D7=\"\",\"\",\"11% İşverenı Hissesi\")","v":""},{"$f":"+U31","v":0},null,null,null,null,null,null,null,null,null,null,null,null,null,null,{"$f":"IF(U23=0,0,\"Bireysel emeklilik (BES) Tutarı\")","v":0},{"$f":"ROUNDDOWN(IF('Bilgi Girişi'!H23=\"Evet\",(U26*0.03),0),0)","v":0}]
[null,null,null,{"$f":"IF('Bilgi Girişi'!D7=\"\",\"\",\"EMEKLI KESN.%20\")","v":""},{"$f":"+U13","v":0},null,null,"Rapor Günü",{"$f":"+'Bilgi Girişi'!D25","v":0},null,null,null,null,null,null,null,null,null,null,{"$f":"IF(U24=0,0,\"Bireysel emeklilik (BES) Tutarı\")","v":0},{"$f":"ROUND(IF('Bilgi Girişi'!H23=\"Evet\",(((U31/11)*100)*0.03),0),2)","v":0}]
[null,null,null,null,null,null,null,"Rapor için Hesaplacak Tutarlar",null,null,null,"Rapordan Dolayı Ödenecek Tutarlar"]
[null,null,null,"Genel Sağlık Siğortası Pirimi",null,null,null,"Ö.H.Taz.",{"$f":"+I6","v":0},null,null,{"$f":"I26-(ROUND(IF(I24>0,((($I$26/'Bilgi Girişi'!I3)*Hesaplamalar!$I$24)*$I$28))/100,2))","v":0},null,null,null,null,null,null,null,{"$f":"IF('Bilgi Girişi'!D7='Bilgi Girişi'!C80,\"Em.Kes.Karşılığı  % 20 (Devlet K.Matrahı)\",0)","v":0},{"$f":"IF(E7=0,0,IF(T26=0,0,ROUND(IF(Q7=0,((E9+E10+Q12+E13+Q6)),(Q7+E9+E10+E13+Q6)),2)))","v":0}]
[null,null,null,{"$f":"IF('Bilgi Girişi'!D7=\"\",\"\",\"7,5 % İşveren Hissesi\")","v":""},{"$f":"+U32","v":0},null,null,"Yan Ödeme",{"$f":"+I8","v":0},null,null,{"$f":"I27-(ROUND(IF(I24>0,((($I$27/'Bilgi Girişi'!I4)*Hesaplamalar!$I$24)*$I$28))/100,2))","v":0},null,null,null,null,null,null,null,{"$f":"IF('Bilgi Girişi'!D7='Bilgi Girişi'!C80,\"Em.Kes.Karşılığı  % 20 (Devlet)\",0)","v":0},{"$f":"ROUND(IF(U26=0,0,(U26*0.2)),2)","v":0}]
[null,null,null,{"$f":"IF('Bilgi Girişi'!D7=\"\",\"\",\"12 % İşveren Hissesi\")","v":""},{"$f":"+U17","v":0},null,null,"Rapor İnd.Oranı %",25,null,null,null,null,null,null,null,null,null,null,{"$f":"IF('Bilgi Girişi'!D7=\"\",\"\",IF('Bilgi Girişi'!D7='Bilgi Girişi'!C81,0,\"Gen.Sag.Sig.Pir.(Ek Göst Farklı İse ) Devlet K.Matrahı) % 12\"))","v":""},{"$f":"IF(B7=B8,0,IF(T28=0,0,ROUND(IF(Q7=0,(E9+Q13+E10+E13+Q9),(Q7+Q13+E10+E12+Q6)),2)))","v":0}]
[null,null,null,null,null,null,null,null,null,null,null,null,null,null,null,null,null,null,null,{"$f":"IF('Bilgi Girişi'!D7=\"\",\"\",IF('Bilgi Girişi'!D7='Bilgi Girişi'!C81,0,\"Gen.Sag.Sig.Pir.(Ek Göst Aynı İse ) Devlet K.Matrahı) % 12\"))","v":""},{"$f":"IF(B7=B8,0,IF(T29=0,0,ROUND(IF(Q7=0,(E9+Q13+E10+E13+Q9),(Q7+Q13+E10+E13+Q6+E9)),2)))","v":0}]
[null,null,null,{"$f":"IF('Bilgi Girişi'!D7=\"\",\"\",\"EMEKLI KESN.%100 ŞAHIS\")","v":""},{"$f":"+E31","v":0},null,null,null,null,null,null,null,null,null,null,null,null,null,null,{"$f":"IF('Bilgi Girişi'!D7=\"\",\"\",IF('Bilgi Girişi'!D7='Bilgi Girişi'!C81,0,\"Gen.Sag.Sig.Pir.(Devlet) % 12\"))","v":""},{"$f":"ROUND((U29*0.12),2)","v":0}]
[null,null,null,{"$f":"IF('Bilgi Girişi'!D7=\"\",\"\",\"EMEKLI KESN.%100 Devlet\")","v":""},{"$f":"+U11","v":0},null,null,null,null,null,null,null,null,null,null,null,null,null,null,{"$f":"IF('Bilgi Girişi'!D7='Bilgi Girişi'!C81,\"Mal.Yaş.Ölüm Sig   % 11 (Devlet)\",0)","v":0},{"$f":"IF(T31=0,0,ROUND((E9+Q12+E11+E12+I7+M7+E14)*0.11,2))","v":0}]
[null,null,null,null,null,null,null,null,null,null,null,null,null,null,null,null,null,null,null,{"$f":"IF('Bilgi Girişi'!D7='Bilgi Girişi'!C81,\"Gen Sağ.Sig   % 7,5 (Devlet)\",0)","v":0},{"$f":"IF(T32=0,0,ROUND((E9+Q12+E11+E12+I7+M7+E14)*0.075,2))","v":0}]
[null,null,null,null,null,null,null,null,null,null,null,null,null,null,null,null,null,null,null,{"$f":"IF('Bilgi Girişi'!D7=\"\",\"\",\"Asgari Geçim İndirimi Tutarınız\")","v":""},{"$f":"+'Asg Geç İnd'!Y4","v":0}]
[null,null,null,null,null,null,null,null,null,null,null,null,null,null,null,null,null,null,null,{"$f":"IF('Bilgi Girişi'!D7=\"\",\"\",\"Gelirler  Toplamınız\")","v":""},{"$f":"E6+E14+E10+E12+I8+I6+U27+U30+E17+E18+I21+M11+I10+I13+I16+I19+M7+M8+M10+U31+U32+M6+I18+M9","v":0}]
[null,null,null,null,null,null,null,null,null,null,null,null,null,null,null,null,null,null,null,{"$f":"IF('Bilgi Girişi'!D7=\"\",\"\",\"Kesinti Toplamınız\")","v":""},{"$f":"U9+U12+U13+U14+U16+U17+U18+U19+U15+U20+U21+U22+U23+U24","v":0}]
[null,null,null,null,null,null,null,null,null,null,null,null,null,null,null,null,null,null,null,{"$f":"IF('Bilgi Girişi'!D7=\"\",\"\",\"Net Ödenecek Maaşş Tutarınız\")","v":""},{"$f":"U34-U35","v":0}]
[null,null,null,null,null,null,null,null,null,null,null,null,null,null,null,null,null,null,null,{"$f":"IF('Bilgi Girişi'!H24=\"Evet\",\"Net Ödenen Maşınız Özelleştirme Tazminatı Dahil\",0)","v":0},{"$f":"IF('Bilgi Girişi'!H24=\"Evet\",I14+U36,0)","v":0}]

{"sheet":"Tablo","index":3,"n_rows":65,"n_cols":20,"rows_kept":65,"cut":false,"hidden":false,"merged":[[61,19,61,20],[62,19,64,20],[62,13,64,13],[62,14,63,14],[62,15,64,15],[62,16,63,16],[57,1,64,1],[57,4,57,5],[57,19,57,20],[58,4,58,5],[58,19,58,20],[62,17,64,17],[62,18,63,18],[62,2,63,2],[62,4,64,5],[62,6,64,6],[62,7,64,11],[62,12,64,12],[59,4,59,5],[59,19,59,20],[60,19,60,20],[61,4,61,5],[36,1,38,1],[36,19,36,20],[37,3,37,4],[37,19,37,20],[38,19,38,20],[41,1,54,1],[41,19,41,20],[42,19,42,20],[43,19,43,20],[44,19,44,20],[45,19,45,20],[46,19,46,20],[47,19,47,20],[48,19,48,20],[49,3,49,4],[49,19,49,20],[50,19,50,20],[51,19,51,20],[53,19,53,20],[54,19,54,20],[27,19,27,20],[30,1,33,1],[30,19,30,20],[31,19,31,20],[32,19,32,20],[33,19,33,20],[22,19,22,20],[23,19,23,20],[24,1,26,1],[24,19,24,20],[25,19,25,20],[26,19,26,20],[13,20,13,21],[14,1,21,1],[14,20,14,21],[15,19,15,20],[16,19,16,20],[17,19,17,21],[18,19,18,20],[19,19,19,20],[20,19,20,20],[21,19,21,21],[1,19,1,20],[2,19,2,20],[5,1,12,1],[5,19,5,20],[6,19,6,20],[7,19,7,20],[8,19,8,20],[9,19,9,20],[10,19,10,20],[11,19,11,20],[12,19,12,20]]}
[]
[null,null,null,null,null,null,null,null,null,"5510 Sayılı Kanuna Göre 4/c kapsamında 01/10/2008 den Önce Memuriyete Başlayanlar ",null,null,null,null,null,null,null," 5510 Sayılı Kanuna Göre 4/c kapsamında 01/10/2008 den Sonra Memuriyete Başlayanlar ",null,"5510 Sayılı Kanuna Göre 4/c kapsamında 01/10/2008 den Önce Memuriyete Başlayanlar "]
[null,"Harcama Gurubu",null,"Harcama Kalemi",null,"Damga Vergisi",null,"Gelir Vergisi",null,"Emekli Keseneği",null,"Tasarruf Kesintisi",null,"Döner Sermaye",null,"Vergi İndirimi",null,"Malüllük  Yaşlılık ve Ölüm  & Genel Sağlık Siğortası Primi",null,"\"01/07/2008 den itibaren 3 yıl Sonra \"  18/12/2009 tarih ve 27436 sayılıR.G Yayımlanan KAMU PERSONELİNİN GENEL SAĞLIK SİGORTASI KAPSAMINA\nALINMASI HAKKINDA TEBLİĞ 5.Maddesi\nGenel Sağlık Siğortası Primi  % 12 Tamamı İşverenden"]
[]
[]
[null,"Temel Maaşlar      (Eski 110)",null,"MAAŞ",null,"Tabi",null,"Tabi",null,"-----",null,"Tabi",null,"Tabi",null," ------",null," ------",null,"-----"]
[null,null,null,"EMEKLİ MAAŞI",null," ------",null,"----",null,"Tabi",null,"-----",null,"-----",null," ------",null,"Tabi",null,"Tabi"]
[null,null,null,"TABAN MAAŞ",null,"Tabi",null,"Tabi",null,"Tabi",null,"Tabi",null," ------",null," ------",null,"Tabi",null,"Tabi"]
[null,null,null,"KIDEM",null,"Tabi",null,"Tabi",null,"Tabi",null,"Tabi",null," ------",null," ------",null,"Tabi",null,"Tabi"]
[null,null,null,"EK GOSTERGE",null,"Tabi",null,"Tabi",null," ------",null,"Tabi",null,"Tabi",null," ------",null," ------",null," ------"]
[null,null,null,"Emekli Ek Göstersi",null," ------",null," ------",null,"Tabi",null," ------",null," ------",null," ------",null,"Tabi",null,"Tabi"]
[null,null,null,"İKİNCİ GÖREV AYLIĞI",null,"Tabi",null,"Tabi",null," ------",null," ------",null," ------",null," ------",null," ------",null," ------"]
[]
[null,null,null,null,null,null,null,null,null,null,null,null,null,null,null," ------"]
[null,"Sos Güv.Primi",null,"Malullül Yaşlılık ve Ölüm Siğortası"]
[null,null,null,"9  % Sigortalı Hissesi",null," ------",null," ------",null," ------",null," ------",null," ------",null,"Tabi",null," ------",null," ------"]
[null,null,null,"11% İşverenı Hissesi",null," ------",null," ------",null," ------",null," ------",null," ------",null," ------",null," ------",null," ------"]
[]
[null,null,null,"Genel Sağlık Siğortası Pirimi",null,null,null,null,null,null,null,null,null,null,null,null,null,null,null," ------"]
[null,null,null,"5 % Sigortalı Hissesi",null," ------",null," ------",null," ------",null," ------",null," ------",null,"Tabi",null," ------",null," ------"]
[null,null,null,"7,5 % İşverenı Hissesi",null," ------",null," ------",null," ------",null," ------",null," ------",null," ------",null," ------",null," ------"]
[null,null,null,"12 % İşverenı Hissesi",null," ------",null," ------",null," ------",null," ------",null," ------",null," ------",null," ------",null,"01/10/2008 den Önceki Memurlar İçin,    Emekli Keseneğine Tabi Gelirler Üzerinden Tamamı Devletten % 100 Artış Varsa Artıştan Önceki Matrahr Üzerinden"]
[null,null,null,null,null,null,null,null,null,null,null,null,null,null,null,null,null,null,null," ------"]
[null,null,null,null,null,null,null,null,null,null,null,null,null,null,null,null,null,null,null," ------"]
[null,"Emekli Sandığına  (Eski 110)",null,"EMEKLI KESN.%20",null," ------",null," ------",null," ------",null," ------",null," ------",null," ------",null," ------",null," ------"]
[null,null,null,"EMEKLI KESN.%25",null," ------",null," ------",null," ------",null," ------",null," ------",null,"Tabi",null," ------",null," ------"]
[null,null,null,"EMEKLİ KESN.%100",null," ------",null," ------",null," ------",null," ------",null," ------",null,"Tabi",null," ------",null," ------"]
[]
[]
[]
[null,"Sosyal Haklar    (Eski 140)",null,"COCUK YARDIMI",null," ------",null," ------",null," ------",null," ------",null," ------",null," ------",null," ------",null," ------"]
[null,null,null,"AİLE YARDIMI",null," ------",null," ------",null," ------",null," ------",null," ------",null," ------",null," ------",null," ------"]
[null,null,null,"TAS.KES.DEV.KATS.%3 Kaldırıldı",null," ------",null," ------",null," ------",null," ------",null," ------",null," ------",null," ------",null," ------"]
[null,null,null,"DOĞUM YARDIMI",null," ------",null," ------",null," ------",null," ------",null," ------",null," ------",null," ------",null," ------"]
[]
[]
[null,"Ek Çalışma Karşılıkları (150)",null,"EK ÇALIŞMA KARŞL.",null,"Tabi",null,"Tabi",null," ------",null," ------",null," ------",null," ------",null," ------",null," ------"]
[null,null,null,"EK ÇALIŞMA KARŞL.(2.ÖĞRT)",null,"Tabi",null,"Tabi",null," ------",null," ------",null," ------",null," ------",null," ------",null," ------"]
[null,null,null,"EK ÇALIŞMA KARŞL.(Nöbet)"," ","Tabi",null," ------",null," ------",null," ------",null," ------",null," ------",null," ------",null," ------"]
[]
[]
[null,"Zamlar         Ve       Tazminatlar                (Eski 160)",null,"İŞ RİSKİ(YAN ÖDEME)",null,"Tabi",null,"Tabi",null," ------",null,"Tabi",null,"Tabi",null," ------",null," ------",null," ------"]
[null,null,null,"ÖZEL HİZMET TAZMİ.",null,"Tabi",null," ------",null," ------",null,"Tabi",null,"Tabi",null," ------",null,"Tabi",null," ------"]
[null,null,null,"ARAZİ TAZMİNATI",null,"Tabi",null," ------",null," ------",null," ------",null," ------",null," ------",null," ------",null," ------"]
[null,null,null,"Yapı İşl.Tek.Dai.Bşk              % 30 Ek Taz.",null,"Tabi",null," ------",null," ------",null," ------",null,"Tabi",null," ------",null," ------",null," ------"]
[null,null,null,"MAKAM TAZMİNATI",null,"Tabi",null," ------",null," ------",null,"Tabi",null," ------",null," ------",null,"Tabi",null," ------"]
[null,null,null,"TEMSİL TAZMİNATI",null,"Tabi",null," ------",null," ------",null,"Tabi",null," ------",null," ------",null,"Tabi",null," ------"]
[null,null,null,"GÖREV TAZMİNATI",null,"Tabi",null," ------",null," ------",null," ------",null," ------",null," ------",null,"Tabi",null," ------"]
[null,null,null,"NÖBET TAZMİNATI",null,"Tabi",null,"Tabi",null," ------",null," ------",null," ------",null," ------",null," ------",null," ------"]
[null,null,null,"SAGLIK BAKAN.FARKI",null," ------",null," ------",null," ------",null," ------",null,"Tabi",null," ------",null," ------",null," ------"]
[null,null,null,"ÖZELLEŞTİRMEDEN DOGAN FARK",null," ------",null," ------",null," ------",null," ------",null," ------",null," ------",null," ------",null," ------"]
[null,null,null,"YABANCI DİL TAZMİ.",null,"Tabi",null," ------",null," ------",null," ------",null,"Tabi",null," ------",null," ------",null," ------"]
[null,null,null,"YÜKSEK ÖĞRETİM TAZMİNATI",null,"Tabi",null," ------",null," ------",null," ------",null," ------",null," ------",null," ------",null," ------"]
[null,null,null,"LOJMAN TAZMİNATI         31/03/2006 tarih ve 26125 say.Res.Gaz.Yayım.5473 say.Kan.11.Mad.ileKaldırıld",null,"Tabi",null," ------",null," ------",null," ------",null," ------",null," ------",null," ------",null," ------"]
[null,null,null,"Ek Ödeme                31/3/2006 Tarih ve 26125 Say.R.G Yayımlanan 5473 Say.Kanunla ",null,"Tabi",null," ------",null," ------",null," ------",null," ------",null," ------",null," ------",null," ------"]
[]
[]
[null,"Ödenekler (Eski 170)",null,"İDARİ GÖREV ÖDENEĞİ","Tabi",null,null,"Tabi",null," ------",null,"Tabi",null,"Tabi",null," ------",null," ------",null," ------"]
[null,null,null,"GELİŞTİRME ÖDENEĞİ","Tabi",null,null," ------",null," ------",null,"Tabi",null," ------",null," ------",null," ------",null," ------"]
[null,null,null,"ÜNİVERSİTE ÖDENEĞİ","Tabi",null,null," ------",null," ------",null,"Tabi",null,"Tabi",null," ------",null,"Tabi",null," ------"]
[null,null,null,"AKADEMİK TEŞVİK ÖDENEĞİ",null,"Tabi",null," ------",null," ------",null,"Tabi",null,"Tabi",null," ------",null,"Tabi",null," ------"]
[null,null,null,"EĞİTİM ÖĞRT.ÖDENEĞİ","Tabi",null,null," ------",null," ------",null,"Tabi",null,"Tabi",null," ------",null," ------",null," ------"]
[null,null,null,"Sendika Ödeneği                “31/3/2006 Tarih ve 26125 Say.R.G Yayımlanan 5473 Say.Kanunla eklenen (ek madde 4) 4688 ","Tabi",null,null,"25.02.2011 Tarih ve 27857 sayılı Mükerrer r.g yayımlanan 6111 sayılı kanunun 118.maddesi ile  Ocak Nisan,Temmuz ve Ekim aylarında peşin 45,00 TL Toplu Sözleşme Primi Getirildi",null,null,null,null,null," ------",null,"Tabi                                                 (kendisinden Kesilen Kısmı Kadar)    ",null," ------",null," ------"]
[null,null,null,"sayılı Kamu Görevlileri Sendikaları Kanunu Hükümleri Uyarınca Kamu Görevlileri Sendikalarına  Üye Olanlara 15/01/2006 dan itibaren 5.00.-YTL Tutarında ödenir"]
[null,null,null,"Not:  Sendika Yardımı 10/11/2009 tarih ve 27402 sayılı R.G Yayımlanan 2006/94 Esas 2009/92 Karar 25.06/2009 tarihli Anayasa Mah.Kararı İle İptal edildi"]

{"sheet":"Ödeme Emri","index":4,"n_rows":41,"n_cols":24,"rows_kept":41,"cut":false,"hidden":false,"merged":[[1,0,1,1],[1,2,1,12],[2,0,2,1],[2,2,2,12],[2,13,2,15],[2,16,2,18],[2,19,6,19],[2,20,2,22],[3,0,4,1],[3,7,4,12],[3,13,3,15],[3,16,3,18],[3,20,3,22],[4,13,4,15],[4,16,4,18],[4,20,4,22],[5,0,5,1],[5,2,5,18],[5,20,5,22],[6,0,6,1],[6,2,6,18],[6,20,6,22],[9,2,10,2],[9,3,10,3],[9,4,10,4],[9,6,10,6],[9,7,10,7],[9,5,10,5],[7,0,10,1],[7,2,8,6],[7,7,8,10],[9,8,10,8],[9,9,10,9],[9,10,10,10],[9,13,10,13],[9,14,10,14],[9,15,10,15],[9,16,10,16],[9,18,10,19],[9,20,10,22],[7,23,10,23],[8,11,8,12],[8,13,8,16],[8,18,8,19],[8,20,8,22],[7,11,7,12],[7,13,7,17],[7,18,7,22],[9,11,10,12],[16,18,16,19],[16,20,16,22],[11,0,11,1],[11,11,11,12],[11,18,11,19],[11,20,11,22],[15,0,15,1],[15,11,15,12],[12,20,12,22],[13,20,13,22],[14,20,14,22],[15,18,15,19],[15,20,15,22],[13,18,13,19],[21,20,21,22],[22,0,22,1],[22,11,22,12],[22,18,22,19],[17,0,17,1],[17,11,17,12],[17,18,17,19],[18,20,18,22],[17,20,17,22],[18,0,18,1],[18,11,18,12],[18,18,18,19],[22,20,22,22],[19,11,19,12],[19,18,19,19],[20,0,20,1],[20,11,20,12],[20,18,20,19],[20,20,20,22],[19,20,19,22],[19,0,19,1],[23,20,23,22],[26,0,26,1],[26,11,26,12],[24,0,24,1],[28,0,28,1],[28,11,28,12],[28,18,28,19],[28,20,28,22],[29,0,29,1],[25,0,25,1],[25,11,25,12],[25,18,25,19],[27,0,27,1],[24,20,24,22],[24,11,24,12],[24,18,24,19],[25,20,25,22],[33,0,33,16],[33,18,33,19],[12,0,12,1],[12,11,12,12],[12,18,12,19],[13,0,13,1],[13,11,13,12],[31,0,31,1],[31,11,31,12],[31,18,31,19],[32,0,32,16],[32,18,32,19],[14,0,14,1],[14,11,14,12],[14,18,14,19],[29,18,29,19],[23,0,23,1],[23,11,23,12],[23,18,23,19],[21,0,21,1],[21,11,21,12],[21,18,21,19],[16,0,16,1],[16,11,16,12],[32,20,32,22],[31,20,31,22],[27,11,27,12],[27,18,27,19],[26,18,26,19],[30,0,30,1],[30,11,30,12],[30,18,30,19],[30,20,30,22],[26,20,26,22],[29,11,29,12],[29,20,29,22],[27,20,27,22]]}
[]
["Muhasebe Birimi Kodu","","??","","",null,"","","","","","","","","","","","","","","","",""]
["Muhasebe Birimi Adı","",{"$f":"+'Bilgi Girişi'!D3","v":"Afyon Kocatepe Üniveritesi"},"","",null,"","","","","","","","Bütçe Yılı","","",{"$f":"+'Bilgi Girişi'!E4","v":2017},"","","İ l g i l i n i n ","Adı, Soyadı/Ünvanı","",""]
["Kurum-Birim Kodu","",1,2,3,4,5,"Yevmiyenin","","","","","","Tarihi","","","","","","","T.C./ Vergi Kimlik No","",""]
["","",38,44,0,0,908,"","","","","","","No.su","","",0,"","","","Banka Şube Adı","",""]
["Kurum Adı","",{"$f":"+C3","v":"Afyon Kocatepe Üniveritesi"},"","",null,"","","","","","","","","","","","","","","Banka Hesap Numarası","",""]
["Birim Adı","",{"$f":"+'Bilgi Girişi'!F4","v":"Strateji Gel Dai Bşk."},null,null,null,null,null,null,null,null,null,null,null,null,null,null,null,null,"","Bağlı Olduğu Vergi Dairesi","",""]
["Hesap No","","Kurumsal Kod","","",null,"","Fonksiyonel Kod","","","","Finans","","Ekonomik /","","","","","T u t a r","","","","","Hesap / Ayrıntı Adı"]
["","","","","",null,"","","","","","Kodu","","Y. Hesap Kodu","","","","","B o r ç","","A l a c a k","","",""]
["","",1,2,3,4,5,1,2,3,4,1,"",1,2,3,4,5,{"$f":"IF(txtYil>2008,\"TL\",\"YTL\")","v":"TL"},null,{"$f":"IF(txtYil>2008,\"TL\",\"YTL\")","v":"TL"},null,null,""]
["","","","","","","","","","","","","","","","","","",null,null,null,null,null,""]
["630","",{"$f":"+$C$5","v":38},{"$f":"+$D$5","v":44},{"$f":"+$E$5","v":0},{"$f":"+$F$5","v":0},{"$f":"+$G$5","v":908},null,null,null,null,"2","","01","01","01",1,"",{"$f":"Bordro!E10+Bordro!E12+Bordro!E13+Bordro!E11","v":0},null,"",null,null,"Temel Maaşlar"]
["630","",38,44,0,0,908,null,null,null,null,"2","","01","01",2,1,null,{"$f":"Bordro!E14+Bordro!E23+Bordro!E18+Bordro!E25+Bordro!E33+Bordro!E24+Bordro!E27+Bordro!E26","v":0},null,"",null,null,"Zamlar ve Tazminatlar"]
["630","",38,44,0,0,908,null,null,null,null,"2","","01","01",4,1,null,{"$f":"Bordro!E22+Bordro!E21","v":0},null,"",null,null,"Sosyal Haklar"]
["630","",38,44,0,0,908,null,null,null,null,"2","","01","01",4,1,null,{"$f":"Bordro!E30+Bordro!E28+Bordro!E29+Bordro!E32+Bordro!E31+Bordro!E34","v":0},null,"",null,null,"Ödenekler"]
["630","",38,44,0,0,908,null,null,null,null,"2","","02",1,"06","01","",{"$f":"Bordro!E16+Bordro!E15","v":0},null,"",null,null,"Sosyal Güvenlik Primi Ödemeleri (%20 Devlet Katkısı)"]
["630","",38,44,0,0,908,null,null,null,null,"2","","02",1,"06","02","",{"$f":"Bordro!E17+Bordro!E19","v":0},null,"",null,null,"Sağlık Primi Ödemeleri (Gen Sağ Sig % 12 Devlet)"]
["360","","","","",null,"","","","","","","","01","01","02","00","",{"$f":"Bordro!C24","v":0},null,"",null,null,"Diğer Ücretler ile Ücret sayılan Ödemelerden Yapılan Tevkifa(Asg.Geç.İnd.)"]
["360","","","","",null,"","","","","","","","01","01","02","00","",null,null,{"$f":"Bordro!G10+Bordro!C24","v":0},null,null,"Diğer Ücretler ile Ücret sayılan Ödemelerden Yapılan Tevkifa"]
["360","","","","",null,"","","","","","","","03","01","00","00","",null,null,{"$f":"+Bordro!G11","v":0},null,null,"Ücret ve Ücret Sayılan Ödemelere Ait Damga Vergisi"]
["361","","","","",null,"","","","","","","","10","01","01",1,"",null,null,{"$f":"+Bordro!G19","v":0},null,null,"Malüllük,Yaşlılık ve Emeklilik Primi (% 9 Şahıs Kesintisi)"]
["361","","","","",null,"","","","","","","","10","01",1,2,"",null,null,{"$f":"+Bordro!G25","v":0},null,null,"Genel Sağlık Sigortası Primi (% 5 Şahıs Kesintisi)"]
["361","","","","",null,"","","","","","","","10","02",2,1,"",null,null,{"$f":"+Bordro!G14","v":0},null,null,"Malüllük,Yaşlılık ve Emeklilik Primi (% 11 Devlet Katkısı)"]
["361","","","","",null,"","","","","","","",1,2,1,0,"",null,null,{"$f":"+Bordro!G12","v":0},null,null,"Sosyal Güvenlik Primi Ödemeleri (%20 Devlet Katkısı)"]
["361","","","","",null,"","","","","","","",1,1,1,0,"",null,null,{"$f":"+Bordro!G13","v":0},null,null,"Sosyal Güvenlik Primi Ödemeleri (%16 Şahıs Kesintisi)"]
["361","","","","",null,"","","","","","","",1,2,4,0,"",null,null,{"$f":"IF(Bordro!G16=0,+Bordro!G15,Bordro!G16)","v":0},null,null,"Genel Sağlık Sigortası Primi (% 12 Devlet Katkısı)"]
[362,"","","","",null,"","","","","","","",2,6,2,0,"",null,null,{"$f":"+Bordro!G23","v":0},null,null,"Kefalet Aidatı Aylık Kesintisi"]
[333,null,"","","",null,"","","","","","","",3,3,0,0,"",null,null,{"$f":"+Bordro!G21","v":0},null,null,"Tahhütlü İcra Kesintisi"]
["333","",null,null,null,null,null,null,null,null,null,"","",3,1,0,0,null,null,null,{"$f":"+Bordro!G22","v":0},null,null,"Normal İcra Kesintisi"]
["333","",null,null,null,null,null,null,null,null,null,"","","10","03",null,null,null,null,null,{"$f":"+Bordro!G20","v":0},null,null,"…….Sendikası (Sendika Aidatı)"]
[361,"",null,null,null,null,null,null,null,null,null,"","",98,9,2,null,null,null,null,{"$f":"+Bordro!G24","v":0},null,null,"BES (Vakıfbank Emeklilik A.Ş)Diğer"]
["103","",{"$f":"+$C$5","v":38},{"$f":"+$D$5","v":44},{"$f":"+$E$5","v":0},{"$f":"+$F$5","v":0},{"$f":"+$G$5","v":908},"","","","","","","02","00","00","00","",null,null,{"$f":"+Bordro!G29+Bordro!E33","v":0},null,null,"Verilen Gönderme Emirleri Hesabı"]
["TOPLAM",null,null,null,null,null,null,null,null,null,null,null,null,null,null,null,null,null,{"$f":"SUM(S12:T32)","v":0},null,{"$f":"SUM(U12:W32)","v":0},null,null,"TOPLAM"]
["Bordrodaki TOPLAM Hakediş (Bütçe Gideri Tahakkuk TOPLAMI)",null,null,null,null,null,null,null,null,null,null,null,null,null,null,null,null,null,{"$f":"SUM(S12:T17)","v":0}]
[]
[]
[]
[]
[]
[]
[{"$f":"+'Bilgi Girişi'!C35","v":0}]

{"sheet":"Değerler Tablosu","index":5,"n_rows":81,"n_cols":19,"rows_kept":81,"cut":false,"hidden":false,"merged":[[3,2,3,4],[7,2,7,3],[10,2,10,3],[11,2,11,3],[4,8,4,9],[5,8,5,9],[6,8,6,9],[8,9,9,9],[5,2,5,3],[4,2,4,3],[11,9,12,9],[6,2,6,3],[12,2,12,3],[8,2,8,3],[9,2,9,3],[27,2,27,3],[13,2,13,3],[17,2,17,4],[18,2,18,3],[19,2,19,3],[25,2,25,3],[26,2,26,3],[23,2,23,3],[24,2,24,3],[20,8,20,9],[20,2,20,3],[21,2,21,3],[18,17,18,18],[22,2,22,3],[34,2,34,4],[35,2,35,3],[36,2,36,3],[37,2,37,3],[38,2,38,3],[44,2,44,3],[39,2,39,3],[40,2,40,3],[41,2,41,3],[42,2,42,3],[43,2,43,3]]}
[]
[]
[null,null,null,null,null,null,null,null,"MAKAM TAZMİNATI CETVELİ (Ek: 20/3/1997-KHK-570/7 md.)"]
[null,null,"Cari Dönem"]
[null,null,"Yıl",null,2017,null,null,null,"MAKAM TAZMİNATI",null,null,null,null,null,"Akademik",null,null,"Y.DİL TAZMİNATI"]
[null,null,"Maaş Katsayısı",null,0.10270600000000001,null,null,null,"Mak.Taz.Göst. X Maaş Katsayısı",null,null,null,null,null,"Y.DİL TAZMİNATI",null,null,"27/3/2006 tar.ve 29299 veya 23299 sy.R.G."]
[null,null,"Yan Ödeme Katsayısı",null,3.2570000000000002E-2,null,null,null,"(Yük.Öğrt.Personel Kan.Ek Mad.2(Ek:20/3/1997-KHK-570/7 Md.)",null,null,null,null,null,"A",900,null,"A1 İçin","100 -96  Puan"]
[null,null,"Taban Aylık Katsayısı",null,1.607645,null,null,null,"Rektör",7000,null,null,null,null,"B",600,null,"A   İçin","  90 -95  Puan"]
[null,null,"Taban Aylık Çarpanı",null,1000,null,null,null,"3 Yıllık Profesör",6000,null,null,null,null,"C",300,null,"B   İçin","  80 -89  Puan "]
[null,null,"Aile Yardımı Puanı",null,2134,null,null,null," (Bu kadroda üç yılını tamamlamış olmak şartıyla)",null,null,null,null,null,"D",2100,null,"C   İçin","  70 -79 Puan"]
[null,null,"Çocuk Yardımı Puanı 72 Aydan Küçük",null,500,null,null,null,"Yeni Profesör",4500,null,null,null,null,"E",1200]
[null,null,"Çocuk Yardımı Puanı 72 Aydan Büyük",null,250,null,null,null,"Doçent",2000,null,null,null,null,"A1",1200]
[null,null,"Asgari Ücret (Günlük)",null,59.25,null,null,null,"(Kaz.Hak.aylığı 1.Derece Olmak Kaydıyla)",null,null,null,null,"Araştırmacı 1","C",250]
[null,null,"Sendika Topl.Sö.z Prim Puanı",null,750,null,null,null,"Genel Sekreter",2000,null,null,null,"İç Denetçi","B",600]
[null,null,null,null,null,null,null,null,"Araştırmacı 1",3500]
[null,null,null,null,null,null,null,null,"İç Denetçi",2000]
[]
[]
[null,null,"Yıl",null,2016,null,null,null,"GÖREV TAZMİNATI",null,null,null,null,null,null,null,null,"Akademik Teşvik Oranları %"]
[null,null,"Maaş Katsayısı",null,8.8816999999999993E-2,null,null,null,null,null,null,null,null,null,null,null,null,"Yeni Profesör",100]
[null,null,"Yan Ödeme Katsayısı",null,2.8164999999999999E-2,null,null,null,"Makam Tazminatı Gösterge Rakamları",null,"İlave","Toplam",null,null,null,null,null,"3 Yıllık Profesör",100]
[null,null,"Taban Aylık Katsayısı",null,1.390277,null,null,null,6000,"Olanlar için",9000,{"$f":"I22+K22","v":15000},null,null,null,null,null,"Prof.Dr.",100]
[null,null,"Taban Aylık Çarpanı",null,1000,null,null,null,5500,"Olanlar için",7000,12500,null,null,null,null,null,"Doç.Dr.",90]
[null,null,"Aile Yardımı Puanı",null,2134,null,null,null,4500,"Olanlar için",7000,11500,null,null,null,null,null,"Yrd.Doç.Dr.",80]
[null,null,"Çocuk Yardımı Puanı 72 Aydan Küçük",null,500,null,null,null,4000,"Olanlar için",6000,10000,null,null,null,null,null,"Arş.Grv.",70]
[null,null,"Çocuk Yardımı Puanı 72 Aydan Büyük",null,250,null,null,null,2000,"Olanlar için",6000,8000,null,null,null,null,null,"Öğretim.Grv.",70]
[null,null,"Asgari Ücret (Günlük)",null,54.9,null,null,null,3500,"Olanlar için",6000,9500,null,null,null,null,null,"Okutman",70]
[null,null,"Sendika Topl.Sö.z Primi TL",null,750,null,null,null,7000,"Olanlar için",null,17000,"Temsil Tazminatı",null,null,null,null,"Uzman",70]
[null,null,null,null,null,null,null,null,null,null,null,null,null,null,null,null,null,"Çevirici",70]
[null,null,null,null,null,null,null,null,null,"Sakatlık İndirimi TL",null,null,null,null,null,null,null,"Rektör",100]
[null,null,null,null,null,null,null,null,"1.Derece",880]
[null,null,"BES Oranı %",3,null,null,null,null,"2.Derece",440]
[null,null,null,null,null,null,null,null,"3.Derece",200]
[]
[]
[null,null,"Yıl",null,2015,null,null,null,"Ek Göstergesi","%"]
[null,null,"Maaş Katsayısı",null,8.3084000000000005E-2,null,null,null,"0-2200 Arası",55]
[null,null,"Yan Ödeme Katsayısı",null,2.6346999999999999E-2,null,null,null,"2200 Dahil 3600 Hariç",85]
[null,null,"Taban Aylık Katsayısı",null,1.30054,null,null,null,"3600 Dahil 4800 Hariç",145]
[null,null,"Taban Aylık Çarpanı",null,1000,null,null,null,"4800 Dahil 6400 Hariç",165]
[null,null,"Aile Yardımı Puanı",null,2134,null,null,null,"6400 Dahil 7600 Hariç",195]
[null,null,"Çocuk Yardımı Puanı 72 Aydan Küçük",null,500,null,null,null,"7600 Dahil 8400 Hariç",215]
[null,null,"Çocuk Yardımı Puanı 72 Aydan Büyük",null,250]
[null,null,"Asgari Ücret (Günlük)",null,40.049999999999997,null,null,null,"Em.Kes.Katkı Oranı / Ek Gsösretegi Eşit Olanlar",null,"Em.Kes.Katkı Oranı / Ek Gsösretegi Eşit Olanlar"]
[null,null,"Sendika Topl.Sö.z Primi TL",null,60,null,null,null,{"$f":"IF('Bilgi Girişi'!D22<2200,55,0)","v":55},null,{"$f":"IF('Bilgi Girişi'!D23<2200,55,0)","v":55}]
[null,null,null,null,null,null,null,null,{"$f":"IF(I47>0,0,IF(AND('Bilgi Girişi'!D22>=2200,'Bilgi Girişi'!D22<=3600),85,0))","v":0},null,{"$f":"IF(I47>0,0,IF(AND('Bilgi Girişi'!D23>=2200,'Bilgi Girişi'!D23<=3600),85,0))","v":0}]
[null,null,null,null,null,null,null,null,{"$f":"IF(I48>0,0,IF(AND('Bilgi Girişi'!D22>=3600,'Bilgi Girişi'!D22<=4800),145,0))","v":0},null,{"$f":"IF(I48>0,0,IF(AND('Bilgi Girişi'!D23>=3600,'Bilgi Girişi'!D23<=4800),145,0))","v":0}]
[null,null,null,null,null,null,null,null,{"$f":"IF(I49>0,0,IF(AND('Bilgi Girişi'!D22>=4800,'Bilgi Girişi'!D22<=6400),165,0))","v":0},null,{"$f":"IF(I49>0,0,IF(AND('Bilgi Girişi'!D23>=4800,'Bilgi Girişi'!D23<=6400),165,0))","v":0}]
[null,null,null,null,null,null,null,null,{"$f":"IF(I50>0,0,IF(AND('Bilgi Girişi'!D22>=6400,'Bilgi Girişi'!D22<=7600),195,0))","v":0},null,{"$f":"IF(I50>0,0,IF(AND('Bilgi Girişi'!D23>=6400,'Bilgi Girişi'!D23<=7600),195,0))","v":0}]
[]
[]
[]
[]
[]
[]
[]
[]
[]
[]
[]
[]
[]
[]
[]
[]
[]
[]
[]
[]
[]
[]
[]
[]
[]
[]
[]
[]
[]
[]
[]
[null,null,null,{"$f":"+'Bilgi Girişi'!C35","v":0}]

{"sheet":"Asg Geç İnd","index":6,"n_rows":18,"n_cols":25,"rows_kept":18,"cut":false,"hidden":false,"merged":[[1,7,1,15]]}
[]
[{"$f":"COUNTIF(A4:A33,\">0\")","v":1}]
["Sıra No","Adı Soyadı","Medeni Hali",null,"Eşi Çalışıyormu","Çocuk Sayısı","İlgili  Döneme Ait Maaşındaki Vergi Matrahı","Sakatlık İndirimi (Varsa)","GELİR VERGİSİNE TABİ GELİRİ","İlgili Dönemde Kendisinden Kesilen  Gelir Vergisi tutarı","16 Yaşından Büyükler İçin Asgari Ücret (Günlük)","16 Yaşından Büyükler İçin Asgari Ücret (Yıllık)","Asgari Geçim İndirimine Esas Tutar","Asgari Geçim İndiriminin Yıllık Tutarı","Hesaplanan Yıllık Tutarın 1/12 si","İlgili Dönemde Mükellefin (Çalışanın) Ödeyeceği Vergi Tutarı","Çalışan Personel İçin","Eşi İçin","1.Çocuk","2.Çocuk","3.Çocuk","4.Çocuk","5.Çocuk","TOPLAM İnd.Oranı","Ödenecek İndirim Tutarı"]
[1,{"$f":"+'Bilgi Girişi'!D11","v":0},{"$f":"+'Bilgi Girişi'!D12","v":0},{"$f":"MID(C4,10,10)","v":""},{"$f":"IF(A4<=0,\"\",IF(D4=\"Çalışıyor\",\"Evet\",IF(C4=\"Dul\",\"\",IF(C4=\"Bekar\",\"\",IF(D4=\"Çalışmıyor\",\"Hayır\",IF(C4=\"Evli Eşi Emekli V.İnd Yararlanıyor\",\"Hayır\",\"\"))))))","v":""},{"$f":"SUM('Bilgi Girişi'!D13+'Bilgi Girişi'!E13)","v":0},{"$f":"+Hesaplamalar!U5","v":0},null,{"$f":"G4-H4","v":0},{"$f":"ROUND((I4*0.15),2)","v":0},{"$f":"IF(A4<=0,0,'Değerler Tablosu'!E13)","v":59.25},{"$f":"(K4*30)*12","v":21330},{"$f":"ROUND((L4*X4)/100,2)","v":10665},{"$f":"ROUND((M4*0.15),2)","v":1599.75},{"$f":"ROUND((N4/12),2)","v":133.31},{"$f":"IF(J4-O4<0,0,J4-O4)","v":0},{"$f":"IF(A4<=0,0,50)","v":50},{"$f":"IF(E4=\"Hayır\",10,0)","v":0},{"$f":"IF(F4=0,0,IF(F4=1,7.5,IF(F4>1,7.5)))","v":0},{"$f":"IF(F4=0,0,IF(F4>1,7.5,))","v":0},{"$f":"IF(F4>2,10,0)","v":0},{"$f":"IF(F4>3,5,0)","v":0},{"$f":"IF(F4>4,5,0)","v":0},{"$f":"SUM(Q4:W4)","v":50},{"$f":"IF('Bilgi Girişi'!I2=\"Evet\",0,IF(J4<O4,+J4,+O4))","v":0}]
[]
[]
[]
[]
[]
[]
[]
[]
[]
[]
[]
[null,{"$f":"+'Bilgi Girişi'!C35","v":0}]
[]
[null,{"$f":"IF('Değerler Tablosu'!J30=C123,\"Sendika Adı\",IF('Değerler Tablosu'!J30=C126,\"Sendika Adı\",IF('Değerler Tablosu'!J30=C129,\"Sendika Adı\",IF('Değerler Tablosu'!J30=C132,\"Sendika Adı\",0))))","v":0}]

{"sheet":"Vergi","index":7,"n_rows":42,"n_cols":12,"rows_kept":42,"cut":false,"hidden":false,"merged":[[0,2,0,4],[2,4,2,5],[3,4,3,5],[4,4,4,5],[5,4,5,5]]}
[null,null,{"$f":"CONCATENATE(C2,\" \",\"Yılı İçin\")","v":"2017 Yılı İçin"}]
[null,"Yıl",2017]
[1,"1.Dilim",13000,null,{"$f":"CONCATENATE(C3,\" \",\"TL'ye kadar\",\" \",\"(0\",\"-\",C3,\".-TL)\")","v":"13000 TL'ye kadar (0-13000.-TL)"},null,0.15,null,null,null,{"$f":"ROUND(C3*0.15,2)","v":1950}]
[2,"2.Dilim",30000,null,{"$f":"CONCATENATE(C4,\"-TL'nin\",\" \",C3,\"-TL'si için\",\" \",K3,\"-TL, fazlası\",\"( \",C4,\"-\",C3,\"-TL)\")","v":"30000-TL'nin 13000-TL'si için 1950-TL, fazlası( 30000-13000-TL)"},null,0.2,null,null,null,{"$f":"ROUND((C4-C3)*0.2,2)","v":3400},{"$f":"K4+K3","v":5350}]
[3,"3:dilim",110000,null,{"$f":"CONCATENATE(C5,\"-TL'nin\",\" \",C4,\" \",\"- TL'si için\",\" \",L4,\"-TL\",\" \",\"fazlası\",\"(\",C5,\"-\",C4,\"-TL)\")","v":"110000-TL'nin 30000 - TL'si için 5350-TL fazlası(110000-30000-TL)"},null,0.27]
[null,null,null,null,{"$f":"CONCATENATE(C5,\" \",\"-TL'den fazlası\")","v":"110000 -TL'den fazlası"},null,0.35]
[]
[]
[]
[]
[null,null,"D.V.Oranı",7.5900000000000004E-3]
[null,null,"Sendka Aidat Oranı",5.0000000000000001E-3]
[]
[]
[]
[]
[null,null,{"$f":"IF(C35<=Vergi!C3,Vergi!G3,IF(Hesaplamalar!U7>Vergi!C3,Vergi!G4,IF(Hesaplamalar!U7>Vergi!C4,Vergi!G5)))*100","v":15}]
[]
[null,null,15,16,17,18]
[null,null,"Uygulanacak Oran","Vergi Oranı1","Vergi Oranı2","Vergi Oranı2","Vergi Oranı3","Vergi Oranı3"]
[null,null,{"$f":"+D32","v":15},{"$f":"IF(Hesaplamalar!U7<=C3,G3,IF(Hesaplamalar!U7>C3,G4))*100","v":15},{"$f":"IF(Hesaplamalar!U7>C4,\"Evet\",0)","v":0},{"$f":"IF(E21=\"Evet\",G5,0)*100","v":0},{"$f":"IF(Hesaplamalar!U7>C5,\"Malesef\",0)","v":0},{"$f":"IF(G21=\"Malesef\",G6,0)*100","v":0}]
[]
[]
[]
[]
[]
[null,null,null,{"$f":"+C19","v":15}]
[null,null,null,{"$f":"+D21","v":15}]
[null,null,null,{"$f":"+F21","v":0}]
[null,null,null,{"$f":"+H21","v":0}]
[]
[null,null,"En Büyük Oran",{"$f":"MAX(D27:D30)","v":15}]
[]
[]
[]
[]
[]
[]
[]
[]
[]
[null,{"$f":"+'Bilgi Girişi'!C35","v":0}]

{"sheet":"Derece Kademe","index":8,"n_rows":287,"n_cols":29,"rows_kept":287,"cut":false,"hidden":false,"merged":[[1,3,1,11],[2,4,2,9]]}
[]
[null,null,null,"1 Numaralı Cetvel"]
[null,null,null,null,"Aylık GÖSTERGE TABLOSU (1)",null,null,null,null,null,null,null,null,null,null,null,null,null,"7600 (Dahil) - 8400 (Hariç) Arasında Olanlar            ...         Den                      215 'e"]
[null,null,"DERECE",1,2,3,4,5,6,7,8,9,null,null,null,null,null,null,"6400 (Dahil) - 7600 (Hariç) Arasında Olanlar            180         Den                      195 'e"]
[null,null,1,1320,1380,1440,1500," --"," --"," --"," --"," --",null,null,null,null,null,null,"4800 (Dahil) - 6400 (Hariç) Arasında Olanlar            150         Den                      165 'e"]
[null,null,2,1155,1210,1265,1320,1380,1440," --"," --"," --",null,null,null,null,null,null,"3600 (Dahil) - 4800 (Hariç) Arasında Olanlar            130         Den                      145 'e"]
[null,null,3,1020,1065,1110,1155,1210,1265,1320,1380," --",null,null,null,null,null,null,"2200 (Dahil) -36000 (Hariç) Arasında Olanlar             70         Den                        85 'e"]
[null,null,4,915,950,985,1020,1065,1110,1155,1210,1265,null,null,null,null,null,null,"Digerleri                                                                       40          Den                        55 'e"]
[null,null,5,835,865,895,915,950,985,1020,1065,1110]
[null,null,6,760,785,810,835,865,895,915,950,985]
[null,null,7,705,720,740,760,785,810,835,865,895]
[null,null,8,660,675,690,705,720,740,760,785,810]
[null,null,9,620,630,645,660,675,690,705,720,740]
[null,null,10,590,600,610,620,630,645,660,675,690]
[null,null,11,560,570,580,590,600,610,620,630,645]
[null,null,12,545,550,555,560,570,580,590,600,610,null,"D/ K","Puan"]
[null,null,13,530,535,540,545,550,555,560,570,580,null,{"$f":"CONCATENATE($C$5,D4)","v":"11"},{"$f":"+N18","v":1320}]
[null,null,14,515,520,525,530,535,540,545,550,555,null,1320]
[null,null,15,500,505,510,515,520,525,530,535,540,null,{"$f":"CONCATENATE($C$6,D4)","v":"21"},{"$f":"+N20","v":1155}]
[null,null,null,null,null,null,null,null,null,null,null,null,null,1155]
[null,null,null,null,null,null,null,null,null,null,null,null,null,{"$f":"CONCATENATE($C$7,D4)","v":"31"},{"$f":"+N22","v":1020}]
[null,null,null,0,55,null,null,1,null,null,null,null,null,1020]
[null,null,null,{"$f":"D22+100","v":100},55,null,null,2,null,null,null,null,null,{"$f":"CONCATENATE($C$8,D4)","v":"41"},{"$f":"+N24","v":915}]
[null,null,null,200,55,null,null,3,null,null,null,null,null,915]
[null,null,null,300,55,null,null,4,null,null,null,null,null,{"$f":"CONCATENATE($C$9,D4)","v":"51"},{"$f":"+N26","v":835}]
[null,null,null,400,55,null,null,5,null,null,null,null,null,835]
[null,null,null,500,55,null,null,6,null,null,null,null,null,{"$f":"CONCATENATE($C$10,D4)","v":"61"},{"$f":"+N28","v":760}]
[null,null,null,600,55,null,null,7,null,null,null,null,null,760]
[null,null,null,650,55,null,null,8,null,null,null,null,null,{"$f":"CONCATENATE($C$11,D4)","v":"71"},{"$f":"+N30","v":705}]
[null,null,null,{"$f":"D29+100","v":750},55,null,null,9,null,null,null,null,null,705]
[null,null,null,850,55,null,null,10,null,null,null,null,null,{"$f":"CONCATENATE($C$12,D4)","v":"81"},{"$f":"+N32","v":660}]
[null,null,null,950,55,null,null,11,null,null,null,null,null,660]
[null,null,null,1050,55,null,null,12,null,null,null,null,null,{"$f":"CONCATENATE($C$13,D4)","v":"91"},{"$f":"+N34","v":620}]
[null,null,null,1150,55,null,null,13,null,null,null,null,null,620]
[null,null,null,1250,55,null,null,14,null,null,null,null,null,{"$f":"CONCATENATE($C$14,D4)","v":"101"},{"$f":"+N36","v":590}]
[null,null,null,1350,55,null,null,15,null,null,null,null,null,590]
[null,null,null,1450,55,null,null,16,null,null,null,null,null,{"$f":"CONCATENATE($C$15,D4)","v":"111"},{"$f":"+N38","v":560}]
[null,null,null,1550,55,null,null,17,null,null,null,null,null,560]
[null,null,null,1650,55,null,null,18,null,null,null,null,null,{"$f":"CONCATENATE($C$16,D4)","v":"121"},{"$f":"+N40","v":545}]
[null,null,null,1750,55,null,null,19,null,null,null,null,null,545]
[null,null,null,1850,55,null,null,20,null,null,null,null,null,{"$f":"CONCATENATE($C$17,D4)","v":"131"},{"$f":"+N42","v":530}]
[null,null,null,1950,55,null,null,21,null,null,null,null,null,530]
[null,null,null,2050,55,null,null,22,null,null,null,null,null,{"$f":"CONCATENATE($C$18,D4)","v":"141"},{"$f":"+N44","v":515}]
[null,null,null,2150,55,null,null,23,null,null,null,null,null,515]
[null,null,null,2200,85,null,null,24,null,null,null,null,null,{"$f":"CONCATENATE($C$19,D4)","v":"151"},{"$f":"+N46","v":500}]
[null,null,null,{"$f":"D45+100","v":2300},85,null,null,25,null,null,null,null,null,500]
[null,null,null,2400,85,null,null,null,null,null,null,null,null,{"$f":"CONCATENATE($C$5,E4)","v":"12"},{"$f":"+N48","v":1380},null,{"$f":"+P48","v":0},null,{"$f":"+R48","v":0},null,{"$f":"+T48","v":0},null,{"$f":"+V48","v":0},null,{"$f":"+X48","v":0},null,{"$f":"+Z48","v":0},null,{"$f":"+AB48","v":0}]
[null,null,null,2500,85,null,null,null,null,null,null,null,null,1380]
[null,null,null,2600,85,null,null,null,null,null,null,null,null,{"$f":"CONCATENATE($C$6,E4)","v":"22"},{"$f":"+N50","v":1210}]
[null,null,null,2700,85,null,null,null,null,null,null,null,null,1210]
[null,null,null,2800,85,null,null,null,null,null,null,null,null,{"$f":"CONCATENATE($C$7,E4)","v":"32"},{"$f":"+N52","v":1065}]
[null,null,null,2900,85,null,null,null,null,null,null,null,null,1065]
[null,null,null,3000,85,null,null,null,null,null,null,null,null,{"$f":"CONCATENATE($C$8,E4)","v":"42"},{"$f":"+N54","v":950}]
[null,null,null,3100,85,null,null,null,null,null,null,null,null,950]
[null,null,null,3200,85,null,null,null,null,null,null,null,null,{"$f":"CONCATENATE($C$9,E4)","v":"52"},{"$f":"+N56","v":865}]
[null,null,null,3300,85,null,null,null,null,null,null,null,null,865]
[null,null,null,3400,85,null,null,null,null,null,null,null,null,{"$f":"CONCATENATE($C$10,E4)","v":"62"},{"$f":"+N58","v":785}]
[null,null,null,3500,85,null,null,null,null,null,null,null,null,785]
[null,null,null,3600,145,null,null,null,null,null,null,null,null,{"$f":"CONCATENATE($C$11,E4)","v":"72"},{"$f":"+N60","v":720}]
[null,null,null,3700,145,null,null,null,null,null,null,null,null,720]
[null,null,null,3800,145,null,null,null,null,null,null,null,null,{"$f":"CONCATENATE($C$12,E4)","v":"82"},{"$f":"+N62","v":675}]
[null,null,null,3900,145,null,null,null,null,null,null,null,null,675]
[null,null,null,4000,145,null,null,null,null,null,null,null,null,{"$f":"CONCATENATE($C$13,E4)","v":"92"},{"$f":"+N64","v":630}]
[null,null,null,4100,145,null,null,null,null,null,null,null,null,630]
[null,null,null,4200,145,null,null,null,null,null,null,null,null,{"$f":"CONCATENATE($C$14,E4)","v":"102"},{"$f":"+N66","v":600}]
[null,null,null,4300,145,null,null,null,null,null,null,null,null,600]
[null,null,null,4400,145,null,null,null,null,null,null,null,null,{"$f":"CONCATENATE($C$15,E4)","v":"112"},{"$f":"+N68","v":570}]
[null,null,null,4500,145,null,null,null,null,null,null,null,null,570]
[null,null,null,4600,145,null,null,null,null,null,null,null,null,{"$f":"CONCATENATE($C$16,E4)","v":"122"},{"$f":"+N70","v":550}]
[null,null,null,4700,145,null,null,null,null,null,null,null,null,550]
[null,null,null,4800,165,null,null,null,null,null,null,null,null,{"$f":"CONCATENATE($C$17,E4)","v":"132"},{"$f":"+N72","v":535}]
[null,null,null,4900,165,null,null,null,null,null,null,null,null,535]
[null,null,null,5000,165,null,null,null,null,null,null,null,null,{"$f":"CONCATENATE($C$18,E4)","v":"142"},{"$f":"+N74","v":520}]
[null,null,null,5100,165,null,null,null,null,null,null,null,null,520]
[null,null,null,5200,165,null,null,null,null,null,null,null,null,{"$f":"CONCATENATE($C$19,E4)","v":"152"},{"$f":"+N76","v":505}]
[null,null,null,5300,165,null,null,null,null,null,null,null,null,505]
[null,null,null,5400,165,null,null,null,null,null,null,null,null,{"$f":"CONCATENATE($C$5,F4)","v":"13"},{"$f":"+N78","v":1440}]
[null,null,null,5500,165,null,null,null,null,null,null,null,null,1440]
[null,null,null,5600,165,null,null,null,null,null,null,null,null,{"$f":"CONCATENATE($C$6,F4)","v":"23"},{"$f":"+N80","v":1265}]
[null,null,null,5700,165,null,null,null,null,null,null,null,null,1265]
[null,null,null,5800,165,null,null,null,null,null,null,null,null,{"$f":"CONCATENATE($C$7,F4)","v":"33"},{"$f":"+N82","v":1110}]
[null,null,null,5900,165,null,null,null,null,null,null,null,null,1110]
[null,null,null,6000,165,null,null,null,null,null,null,null,null,{"$f":"CONCATENATE($C$8,F4)","v":"43"},{"$f":"+N84","v":985}]
[null,null,null,6100,165,null,null,null,null,null,null,null,null,985]
[null,null,null,6200,165,null,null,null,null,null,null,null,null,{"$f":"CONCATENATE($C$9,F4)","v":"53"},{"$f":"+N86","v":895}]
[null,null,null,6300,165,null,null,null,null,null,null,null,null,895]
[null,null,null,6400,195,null,null,null,null,null,null,null,null,{"$f":"CONCATENATE($C$10,F4)","v":"63"},{"$f":"+N88","v":810}]
[null,null,null,6500,195,null,null,null,null,null,null,null,null,810]
[null,null,null,null,null,null,null,null,null,null,null,null,null,{"$f":"CONCATENATE($C$11,F4)","v":"73"},{"$f":"+N90","v":740}]
[null,null,null,null,null,null,null,null,null,null,null,null,null,740]
[null,null,null,null,null,null,null,null,null,null,null,null,null,{"$f":"CONCATENATE($C$12,F4)","v":"83"},{"$f":"+N92","v":690}]
[null,null,null,null,null,null,null,null,null,null,null,null,null,690]
[null,null,null,null,null,null,null,null,null,null,null,null,null,{"$f":"CONCATENATE($C$13,F4)","v":"93"},{"$f":"+N94","v":645}]
[null,null,null,null,null,null,null,null,null,null,null,null,null,645]
[null,null,null,null,null,null,null,null,null,null,null,null,null,{"$f":"CONCATENATE($C$14,F4)","v":"103"},{"$f":"+N96","v":610}]
[null,null,null,null,null,null,null,null,null,null,null,null,null,610]
[null,null,null,null,null,null,null,null,null,null,null,null,null,{"$f":"CONCATENATE($C$15,F4)","v":"113"},{"$f":"+N98","v":580}]
[null,null,null,null,null,null,null,null,null,null,null,null,null,580]
[null,null,null,null,null,null,null,null,null,null,null,null,null,{"$f":"CONCATENATE($C$16,F4)","v":"123"},{"$f":"+N100","v":555}]
[null,null,null,null,null,null,null,null,null,null,null,null,null,555]
[null,null,null,null,null,null,null,null,null,null,null,null,null,{"$f":"CONCATENATE($C$17,F4)","v":"133"},{"$f":"+N102","v":540}]
[null,null,null,null,null,null,null,null,null,null,null,null,null,540]
[null,null,null,null,null,null,null,null,null,null,null,null,null,{"$f":"CONCATENATE($C$18,F4)","v":"143"},{"$f":"+N104","v":525}]
[null,null,null,null,null,null,null,null,null,null,null,null,null,525]
[null,null,null,null,null,null,null,null,null,null,null,null,null,{"$f":"CONCATENATE($C$19,F4)","v":"153"},{"$f":"+N106","v":510}]
[null,null,null,null,null,null,null,null,null,null,null,null,null,510]
[null,null,null,null,null,null,null,null,null,null,null,null,null,{"$f":"CONCATENATE($C$5,G4)","v":"14"},{"$f":"+N108","v":1500}]
[null,null,null,null,null,null,null,null,null,null,null,null,null,1500]
[null,null,null,null,null,null,null,null,null,null,null,null,null,{"$f":"CONCATENATE($C$6,G4)","v":"24"},{"$f":"+N110","v":1320}]
[null,null,null,null,null,null,null,null,null,null,null,null,null,1320]
[null,null,null,null,null,null,null,null,null,null,null,null,null,{"$f":"CONCATENATE($C$7,G4)","v":"34"},{"$f":"+N112","v":1155}]
[null,null,null,null,null,null,null,null,null,null,null,null,null,1155]
[null,null,null,null,null,null,null,null,null,null,null,null,null,{"$f":"CONCATENATE($C$8,G4)","v":"44"},{"$f":"+N114","v":1020}]
[null,null,null,null,null,null,null,null,null,null,null,null,null,1020]
[null,null,null,null,null,null,null,null,null,null,null,null,null,{"$f":"CONCATENATE($C$9,G4)","v":"54"},{"$f":"+N116","v":915}]
[null,null,null,{"$f":"CONCATENATE('Derece Kademe'!$C$5,\"/\",'Derece Kademe'!D4)","v":"1/1"},{"$f":"CONCATENATE('Derece Kademe'!$C$5,\"/\",'Derece Kademe'!E4)","v":"1/2"},{"$f":"CONCATENATE('Derece Kademe'!$C$5,\"/\",'Derece Kademe'!F4)","v":"1/3"},{"$f":"CONCATENATE('Derece Kademe'!$C$5,\"/\",'Derece Kademe'!G4)","v":"1/4"},null,null,null,null,null,null,915]
[null,null,null,{"$f":"CONCATENATE('Derece Kademe'!$C$6,\"/\",'Derece Kademe'!D4)","v":"2/1"},{"$f":"CONCATENATE('Derece Kademe'!$C$6,\"/\",'Derece Kademe'!E4)","v":"2/2"},{"$f":"CONCATENATE('Derece Kademe'!$C$6,\"/\",'Derece Kademe'!F4)","v":"2/3"},{"$f":"CONCATENATE('Derece Kademe'!$C$6,\"/\",'Derece Kademe'!G4)","v":"2/4"},{"$f":"CONCATENATE('Derece Kademe'!$C$6,\"/\",'Derece Kademe'!H4)","v":"2/5"},{"$f":"CONCATENATE('Derece Kademe'!$C$6,\"/\",'Derece Kademe'!I4)","v":"2/6"},null,null,null,null,{"$f":"CONCATENATE($C$10,G4)","v":"64"},{"$f":"+N118","v":835}]
[null,null,null,{"$f":"CONCATENATE('Derece Kademe'!$C$7,\"/\",'Derece Kademe'!D4)","v":"3/1"},{"$f":"CONCATENATE('Derece Kademe'!$C$7,\"/\",'Derece Kademe'!E4)","v":"3/2"},{"$f":"CONCATENATE('Derece Kademe'!$C$7,\"/\",'Derece Kademe'!F4)","v":"3/3"},{"$f":"CONCATENATE('Derece Kademe'!$C$7,\"/\",'Derece Kademe'!G4)","v":"3/4"},{"$f":"CONCATENATE('Derece Kademe'!$C$7,\"/\",'Derece Kademe'!H4)","v":"3/5"},{"$f":"CONCATENATE('Derece Kademe'!$C$7,\"/\",'Derece Kademe'!I4)","v":"3/6"},{"$f":"CONCATENATE('Derece Kademe'!$C$7,\"/\",'Derece Kademe'!J4)","v":"3/7"},{"$f":"CONCATENATE('Derece Kademe'!$C$7,\"/\",'Derece Kademe'!K4)","v":"3/8"},null,null,835]
[null,null,null,{"$f":"CONCATENATE('Derece Kademe'!$C$8,\"/\",'Derece Kademe'!D4)","v":"4/1"},{"$f":"CONCATENATE('Derece Kademe'!$C$8,\"/\",'Derece Kademe'!E4)","v":"4/2"},{"$f":"CONCATENATE('Derece Kademe'!$C$8,\"/\",'Derece Kademe'!F4)","v":"4/3"},{"$f":"CONCATENATE('Derece Kademe'!$C$8,\"/\",'Derece Kademe'!G4)","v":"4/4"},{"$f":"CONCATENATE('Derece Kademe'!$C$8,\"/\",'Derece Kademe'!H4)","v":"4/5"},{"$f":"CONCATENATE('Derece Kademe'!$C$8,\"/\",'Derece Kademe'!I4)","v":"4/6"},{"$f":"CONCATENATE('Derece Kademe'!$C$8,\"/\",'Derece Kademe'!J4)","v":"4/7"},{"$f":"CONCATENATE('Derece Kademe'!$C$8,\"/\",'Derece Kademe'!K4)","v":"4/8"},{"$f":"CONCATENATE('Derece Kademe'!$C$8,\"/\",'Derece Kademe'!L4)","v":"4/9"},null,{"$f":"CONCATENATE($C$11,G4)","v":"74"},{"$f":"+N120","v":760}]
[null,null,null,{"$f":"CONCATENATE('Derece Kademe'!$C$9,\"/\",'Derece Kademe'!D4)","v":"5/1"},{"$f":"CONCATENATE('Derece Kademe'!$C$9,\"/\",'Derece Kademe'!E4)","v":"5/2"},{"$f":"CONCATENATE('Derece Kademe'!$C$9,\"/\",'Derece Kademe'!F4)","v":"5/3"},{"$f":"CONCATENATE('Derece Kademe'!$C$9,\"/\",'Derece Kademe'!G4)","v":"5/4"},{"$f":"CONCATENATE('Derece Kademe'!$C$9,\"/\",'Derece Kademe'!H4)","v":"5/5"},{"$f":"CONCATENATE('Derece Kademe'!$C$9,\"/\",'Derece Kademe'!I4)","v":"5/6"},{"$f":"CONCATENATE('Derece Kademe'!$C$9,\"/\",'Derece Kademe'!J4)","v":"5/7"},{"$f":"CONCATENATE('Derece Kademe'!$C$9,\"/\",'Derece Kademe'!K4)","v":"5/8"},{"$f":"CONCATENATE('Derece Kademe'!$C$9,\"/\",'Derece Kademe'!L4)","v":"5/9"},null,760]
[null,null,null,{"$f":"CONCATENATE('Derece Kademe'!$C$10,\"/\",'Derece Kademe'!D4)","v":"6/1"},{"$f":"CONCATENATE('Derece Kademe'!$C$10,\"/\",'Derece Kademe'!E4)","v":"6/2"},{"$f":"CONCATENATE('Derece Kademe'!$C$10,\"/\",'Derece Kademe'!F4)","v":"6/3"},{"$f":"CONCATENATE('Derece Kademe'!$C$10,\"/\",'Derece Kademe'!G4)","v":"6/4"},{"$f":"CONCATENATE('Derece Kademe'!$C$10,\"/\",'Derece Kademe'!H4)","v":"6/5"},{"$f":"CONCATENATE('Derece Kademe'!$C$10,\"/\",'Derece Kademe'!I4)","v":"6/6"},{"$f":"CONCATENATE('Derece Kademe'!$C$10,\"/\",'Derece Kademe'!J4)","v":"6/7"},{"$f":"CONCATENATE('Derece Kademe'!$C$10,\"/\",'Derece Kademe'!K4)","v":"6/8"},{"$f":"CONCATENATE('Derece Kademe'!$C$10,\"/\",'Derece Kademe'!L4)","v":"6/9"},null,{"$f":"CONCATENATE($C$12,G4)","v":"84"},{"$f":"+N122","v":705}]
[null,null,null,{"$f":"CONCATENATE('Derece Kademe'!$C$11,\"/\",'Derece Kademe'!D4)","v":"7/1"},{"$f":"CONCATENATE('Derece Kademe'!$C$11,\"/\",'Derece Kademe'!E4)","v":"7/2"},{"$f":"CONCATENATE('Derece Kademe'!$C$11,\"/\",'Derece Kademe'!F4)","v":"7/3"},{"$f":"CONCATENATE('Derece Kademe'!$C$11,\"/\",'Derece Kademe'!G4)","v":"7/4"},{"$f":"CONCATENATE('Derece Kademe'!$C$11,\"/\",'Derece Kademe'!H4)","v":"7/5"},{"$f":"CONCATENATE('Derece Kademe'!$C$11,\"/\",'Derece Kademe'!I4)","v":"7/6"},{"$f":"CONCATENATE('Derece Kademe'!$C$11,\"/\",'Derece Kademe'!J4)","v":"7/7"},{"$f":"CONCATENATE('Derece Kademe'!$C$11,\"/\",'Derece Kademe'!K4)","v":"7/8"},{"$f":"CONCATENATE('Derece Kademe'!$C$11,\"/\",'Derece Kademe'!L4)","v":"7/9"},null,705]
[null,null,null,{"$f":"CONCATENATE('Derece Kademe'!$C$12,\"/\",'Derece Kademe'!D4)","v":"8/1"},{"$f":"CONCATENATE('Derece Kademe'!$C$12,\"/\",'Derece Kademe'!E4)","v":"8/2"},{"$f":"CONCATENATE('Derece Kademe'!$C$12,\"/\",'Derece Kademe'!F4)","v":"8/3"},{"$f":"CONCATENATE('Derece Kademe'!$C$12,\"/\",'Derece Kademe'!G4)","v":"8/4"},{"$f":"CONCATENATE('Derece Kademe'!$C$12,\"/\",'Derece Kademe'!H4)","v":"8/5"},{"$f":"CONCATENATE('Derece Kademe'!$C$12,\"/\",'Derece Kademe'!I4)","v":"8/6"},{"$f":"CONCATENATE('Derece Kademe'!$C$12,\"/\",'Derece Kademe'!J4)","v":"8/7"},{"$f":"CONCATENATE('Derece Kademe'!$C$12,\"/\",'Derece Kademe'!K4)","v":"8/8"},{"$f":"CONCATENATE('Derece Kademe'!$C$12,\"/\",'Derece Kademe'!L4)","v":"8/9"},null,{"$f":"CONCATENATE($C$13,G4)","v":"94"},{"$f":"+N124","v":660}]
[null,null,null,{"$f":"CONCATENATE('Derece Kademe'!$C$13,\"/\",'Derece Kademe'!D4)","v":"9/1"},{"$f":"CONCATENATE('Derece Kademe'!$C$13,\"/\",'Derece Kademe'!E4)","v":"9/2"},{"$f":"CONCATENATE('Derece Kademe'!$C$13,\"/\",'Derece Kademe'!F4)","v":"9/3"},{"$f":"CONCATENATE('Derece Kademe'!$C$13,\"/\",'Derece Kademe'!G4)","v":"9/4"},{"$f":"CONCATENATE('Derece Kademe'!$C$13,\"/\",'Derece Kademe'!H4)","v":"9/5"},{"$f":"CONCATENATE('Derece Kademe'!$C$13,\"/\",'Derece Kademe'!I4)","v":"9/6"},{"$f":"CONCATENATE('Derece Kademe'!$C$13,\"/\",'Derece Kademe'!J4)","v":"9/7"},{"$f":"CONCATENATE('Derece Kademe'!$C$13,\"/\",'Derece Kademe'!K4)","v":"9/8"},{"$f":"CONCATENATE('Derece Kademe'!$C$13,\"/\",'Derece Kademe'!L4)","v":"9/9"},null,660]
[null,null,null,{"$f":"CONCATENATE('Derece Kademe'!$C$14,\"/\",'Derece Kademe'!D4)","v":"10/1"},{"$f":"CONCATENATE('Derece Kademe'!$C$14,\"/\",'Derece Kademe'!E4)","v":"10/2"},{"$f":"CONCATENATE('Derece Kademe'!$C$14,\"/\",'Derece Kademe'!F4)","v":"10/3"},{"$f":"CONCATENATE('Derece Kademe'!$C$14,\"/\",'Derece Kademe'!G4)","v":"10/4"},{"$f":"CONCATENATE('Derece Kademe'!$C$14,\"/\",'Derece Kademe'!H4)","v":"10/5"},{"$f":"CONCATENATE('Derece Kademe'!$C$14,\"/\",'Derece Kademe'!I4)","v":"10/6"},{"$f":"CONCATENATE('Derece Kademe'!$C$14,\"/\",'Derece Kademe'!J4)","v":"10/7"},{"$f":"CONCATENATE('Derece Kademe'!$C$14,\"/\",'Derece Kademe'!K4)","v":"10/8"},{"$f":"CONCATENATE('Derece Kademe'!$C$14,\"/\",'Derece Kademe'!L4)","v":"10/9"},null,{"$f":"CONCATENATE($C$14,G4)","v":"104"},{"$f":"+N126","v":620}]
[null,null,null,{"$f":"CONCATENATE('Derece Kademe'!$C$15,\"/\",'Derece Kademe'!D4)","v":"11/1"},{"$f":"CONCATENATE('Derece Kademe'!$C$15,\"/\",'Derece Kademe'!E4)","v":"11/2"},{"$f":"CONCATENATE('Derece Kademe'!$C$15,\"/\",'Derece Kademe'!F4)","v":"11/3"},{"$f":"CONCATENATE('Derece Kademe'!$C$15,\"/\",'Derece Kademe'!G4)","v":"11/4"},{"$f":"CONCATENATE('Derece Kademe'!$C$15,\"/\",'Derece Kademe'!H4)","v":"11/5"},{"$f":"CONCATENATE('Derece Kademe'!$C$15,\"/\",'Derece Kademe'!I4)","v":"11/6"},{"$f":"CONCATENATE('Derece Kademe'!$C$15,\"/\",'Derece Kademe'!J4)","v":"11/7"},{"$f":"CONCATENATE('Derece Kademe'!$C$15,\"/\",'Derece Kademe'!K4)","v":"11/8"},{"$f":"CONCATENATE('Derece Kademe'!$C$15,\"/\",'Derece Kademe'!L4)","v":"11/9"},null,620]
[null,null,null,{"$f":"CONCATENATE('Derece Kademe'!$C$16,\"/\",'Derece Kademe'!D4)","v":"12/1"},{"$f":"CONCATENATE('Derece Kademe'!$C$16,\"/\",'Derece Kademe'!E4)","v":"12/2"},{"$f":"CONCATENATE('Derece Kademe'!$C$16,\"/\",'Derece Kademe'!F4)","v":"12/3"},{"$f":"CONCATENATE('Derece Kademe'!$C$16,\"/\",'Derece Kademe'!G4)","v":"12/4"},{"$f":"CONCATENATE('Derece Kademe'!$C$16,\"/\",'Derece Kademe'!H4)","v":"12/5"},{"$f":"CONCATENATE('Derece Kademe'!$C$16,\"/\",'Derece Kademe'!I4)","v":"12/6"},{"$f":"CONCATENATE('Derece Kademe'!$C$16,\"/\",'Derece Kademe'!J4)","v":"12/7"},{"$f":"CONCATENATE('Derece Kademe'!$C$16,\"/\",'Derece Kademe'!K4)","v":"12/8"},{"$f":"CONCATENATE('Derece Kademe'!$C$16,\"/\",'Derece Kademe'!L4)","v":"12/9"},null,{"$f":"CONCATENATE($C$15,G4)","v":"114"},{"$f":"+N128","v":590}]
[null,null,null,{"$f":"CONCATENATE('Derece Kademe'!$C$17,\"/\",'Derece Kademe'!D4)","v":"13/1"},{"$f":"CONCATENATE('Derece Kademe'!$C$17,\"/\",'Derece Kademe'!E4)","v":"13/2"},{"$f":"CONCATENATE('Derece Kademe'!$C$17,\"/\",'Derece Kademe'!F4)","v":"13/3"},{"$f":"CONCATENATE('Derece Kademe'!$C$17,\"/\",'Derece Kademe'!G4)","v":"13/4"},{"$f":"CONCATENATE('Derece Kademe'!$C$17,\"/\",'Derece Kademe'!H4)","v":"13/5"},{"$f":"CONCATENATE('Derece Kademe'!$C$17,\"/\",'Derece Kademe'!I4)","v":"13/6"},{"$f":"CONCATENATE('Derece Kademe'!$C$17,\"/\",'Derece Kademe'!J4)","v":"13/7"},{"$f":"CONCATENATE('Derece Kademe'!$C$17,\"/\",'Derece Kademe'!K4)","v":"13/8"},{"$f":"CONCATENATE('Derece Kademe'!$C$17,\"/\",'Derece Kademe'!L4)","v":"13/9"},null,590]
[null,null,null,{"$f":"CONCATENATE('Derece Kademe'!$C$18,\"/\",'Derece Kademe'!D4)","v":"14/1"},{"$f":"CONCATENATE('Derece Kademe'!$C$18,\"/\",'Derece Kademe'!E4)","v":"14/2"},{"$f":"CONCATENATE('Derece Kademe'!$C$18,\"/\",'Derece Kademe'!F4)","v":"14/3"},{"$f":"CONCATENATE('Derece Kademe'!$C$18,\"/\",'Derece Kademe'!G4)","v":"14/4"},{"$f":"CONCATENATE('Derece Kademe'!$C$18,\"/\",'Derece Kademe'!H4)","v":"14/5"},{"$f":"CONCATENATE('Derece Kademe'!$C$18,\"/\",'Derece Kademe'!I4)","v":"14/6"},{"$f":"CONCATENATE('Derece Kademe'!$C$18,\"/\",'Derece Kademe'!J4)","v":"14/7"},{"$f":"CONCATENATE('Derece Kademe'!$C$18,\"/\",'Derece Kademe'!K4)","v":"14/8"},{"$f":"CONCATENATE('Derece Kademe'!$C$18,\"/\",'Derece Kademe'!L4)","v":"14/9"},null,{"$f":"CONCATENATE($C$16,G4)","v":"124"},{"$f":"+N130","v":560}]
[null,null,null,{"$f":"CONCATENATE('Derece Kademe'!$C$19,\"/\",'Derece Kademe'!D4)","v":"15/1"},{"$f":"CONCATENATE('Derece Kademe'!$C$19,\"/\",'Derece Kademe'!E4)","v":"15/2"},{"$f":"CONCATENATE('Derece Kademe'!$C$19,\"/\",'Derece Kademe'!F4)","v":"15/3"},{"$f":"CONCATENATE('Derece Kademe'!$C$19,\"/\",'Derece Kademe'!G4)","v":"15/4"},{"$f":"CONCATENATE('Derece Kademe'!$C$19,\"/\",'Derece Kademe'!H4)","v":"15/5"},{"$f":"CONCATENATE('Derece Kademe'!$C$19,\"/\",'Derece Kademe'!I4)","v":"15/6"},{"$f":"CONCATENATE('Derece Kademe'!$C$19,\"/\",'Derece Kademe'!J4)","v":"15/7"},{"$f":"CONCATENATE('Derece Kademe'!$C$19,\"/\",'Derece Kademe'!K4)","v":"15/8"},{"$f":"CONCATENATE('Derece Kademe'!$C$19,\"/\",'Derece Kademe'!L4)","v":"15/9"},null,560]
[null,null,null,null,null,null,null,null,null,null,null,null,null,{"$f":"CONCATENATE($C$17,G4)","v":"134"},{"$f":"+N132","v":545}]
[null,null,null,null,null,null,null,null,null,null,null,null,null,545]
[null,null,null,null,null,null,null,null,null,null,null,null,null,{"$f":"CONCATENATE($C$18,G4)","v":"144"},{"$f":"+N134","v":530}]
[null,null,null,null,null,null,null,null,null,null,null,null,null,530]
[null,null,null,null,null,null,null,null,null,null,null,null,null,{"$f":"CONCATENATE($C$19,G4)","v":"154"},{"$f":"+N136","v":515}]
[null,null,null,null,null,null,null,null,null,null,null,null,null,515]
[null,null,null,null,null,null,null,null,null,null,null,null,null,{"$f":"CONCATENATE($C$5,H4)","v":"15"},{"$f":"+N138","v":" --"}]
[null,null,null,null,null,null,null,null,null,null,null,null,null," --"]
[null,null,null,null,null,null,null,null,null,null,null,null,null,{"$f":"CONCATENATE($C$6,H4)","v":"25"},{"$f":"+N140","v":1380}]
[null,null,null,null,null,null,null,null,null,null,null,null,null,1380]
[null,null,null,null,null,null,null,null,null,null,null,null,null,{"$f":"CONCATENATE($C$7,H4)","v":"35"},{"$f":"+N142","v":1210}]
[null,null,null,null,null,null,null,null,null,null,null,null,null,1210]
[null,null,null,null,null,null,null,null,null,null,null,null,null,{"$f":"CONCATENATE($C$8,H4)","v":"45"},{"$f":"+N144","v":1065}]
[null,null,null,null,null,null,null,null,null,null,null,null,null,1065]
[null,null,null,null,null,null,null,null,null,null,null,null,null,{"$f":"CONCATENATE($C$9,H4)","v":"55"},{"$f":"+N146","v":950}]
[null,null,null,null,null,null,null,null,null,null,null,null,null,950]
[null,null,null,null,null,null,null,null,null,null,null,null,null,{"$f":"CONCATENATE($C$10,H4)","v":"65"},{"$f":"+N148","v":865}]
[null,null,null,null,null,null,null,null,null,null,null,null,null,865]
[null,null,null,null,null,null,null,null,null,null,null,null,null,{"$f":"CONCATENATE($C$11,H4)","v":"75"},{"$f":"+N150","v":785}]
[null,null,null,null,null,null,null,null,null,null,null,null,null,785]
[null,null,null,null,null,null,null,null,null,null,null,null,null,{"$f":"CONCATENATE($C$12,H4)","v":"85"},{"$f":"+N152","v":720}]
[null,null,null,null,null,null,null,null,null,null,null,null,null,720]
[null,null,null,null,null,null,null,null,null,null,null,null,null,{"$f":"CONCATENATE($C$13,H4)","v":"95"},{"$f":"+N154","v":675}]
[null,null,null,null,null,null,null,null,null,null,null,null,null,675]
[null,null,null,null,null,null,null,null,null,null,null,null,null,{"$f":"CONCATENATE($C$14,H4)","v":"105"},{"$f":"+N156","v":630}]
[null,null,null,null,null,null,null,null,null,null,null,null,null,630]
[null,null,null,null,null,null,null,null,null,null,null,null,null,{"$f":"CONCATENATE($C$15,H4)","v":"115"},{"$f":"+N158","v":600}]
[null,null,null,null,null,null,null,null,null,null,null,null,null,600]
[null,null,null,null,null,null,null,null,null,null,null,null,null,{"$f":"CONCATENATE($C$16,H4)","v":"125"},{"$f":"+N160","v":570}]
[null,null,null,null,null,null,null,null,null,null,null,null,null,570]
[null,null,null,null,null,null,null,null,null,null,null,null,null,{"$f":"CONCATENATE($C$17,H4)","v":"135"},{"$f":"+N162","v":550}]
[null,null,null,null,null,null,null,null,null,null,null,null,null,550]
[null,null,null,null,null,null,null,null,null,null,null,null,null,{"$f":"CONCATENATE($C$18,H4)","v":"145"},{"$f":"+N164","v":535}]
[null,null,null,null,null,null,null,null,null,null,null,null,null,535]
[null,null,null,null,null,null,null,null,null,null,null,null,null,{"$f":"CONCATENATE($C$19,H4)","v":"155"},{"$f":"+N166","v":520}]
[null,null,null,null,null,null,null,null,null,null,null,null,null,520]
[null,null,null,null,null,null,null,null,null,null,null,null,null,{"$f":"CONCATENATE($C$5,I4)","v":"16"},{"$f":"+N168","v":" --"}]
[null,null,null,null,null,null,null,null,null,null,null,null,null," --"]
[null,null,null,null,null,null,null,null,null,null,null,null,null,{"$f":"CONCATENATE($C$6,I4)","v":"26"},{"$f":"+N170","v":1440}]
[null,null,null,null,null,null,null,null,null,null,null,null,null,1440]
[null,null,null,null,null,null,null,null,null,null,null,null,null,{"$f":"CONCATENATE($C$7,I4)","v":"36"},{"$f":"+N172","v":1265}]
[null,null,null,null,null,null,null,null,null,null,null,null,null,1265]
[null,null,null,null,null,null,null,null,null,null,null,null,null,{"$f":"CONCATENATE($C$8,I4)","v":"46"},{"$f":"+N174","v":1110}]
[null,null,null,null,null,null,null,null,null,null,null,null,null,1110]
[null,null,null,null,null,null,null,null,null,null,null,null,null,{"$f":"CONCATENATE($C$9,I4)","v":"56"},{"$f":"+N176","v":985}]
[null,null,null,null,null,null,null,null,null,null,null,null,null,985]
[null,null,null,null,null,null,null,null,null,null,null,null,null,{"$f":"CONCATENATE($C$10,I4)","v":"66"},{"$f":"+N178","v":895}]
[null,null,null,null,null,null,null,null,null,null,null,null,null,895]
[null,null,null,null,null,null,null,null,null,null,null,null,null,{"$f":"CONCATENATE($C$11,I4)","v":"76"},{"$f":"+N180","v":810}]
[null,null,null,null,null,null,null,null,null,null,null,null,null,810]
[null,null,null,null,null,null,null,null,null,null,null,null,null,{"$f":"CONCATENATE($C$12,I4)","v":"86"},{"$f":"+N182","v":740}]
[null,null,null,null,null,null,null,null,null,null,null,null,null,740]
[null,null,null,null,null,null,null,null,null,null,null,null,null,{"$f":"CONCATENATE($C$13,I4)","v":"96"},{"$f":"+N184","v":690}]
[null,null,null,null,null,null,null,null,null,null,null,null,null,690]
[null,null,{"$f":"+'Bilgi Girişi'!C35","v":0},null,null,null,null,null,null,null,null,null,null,{"$f":"CONCATENATE($C$14,I4)","v":"106"},{"$f":"+N186","v":645}]
[null,null,null,null,null,null,null,null,null,null,null,null,null,645]
[null,null,null,null,null,null,null,null,null,null,null,null,null,{"$f":"CONCATENATE($C$15,I4)","v":"116"},{"$f":"+N188","v":610}]
[null,null,null,null,null,null,null,null,null,null,null,null,null,610]
[null,null,null,null,null,null,null,null,null,null,null,null,null,{"$f":"CONCATENATE($C$16,I4)","v":"126"},{"$f":"+N190","v":580}]
[null,null,null,null,null,null,null,null,null,null,null,null,null,580]
[null,null,null,null,null,null,null,null,null,null,null,null,null,{"$f":"CONCATENATE($C$17,I4)","v":"136"},{"$f":"+N192","v":555}]
[null,null,null,null,null,null,null,null,null,null,null,null,null,555]
[null,null,null,null,null,null,null,null,null,null,null,null,null,{"$f":"CONCATENATE($C$18,I4)","v":"146"},{"$f":"+N194","v":540}]
[null,null,null,null,null,null,null,null,null,null,null,null,null,540]
[null,null,null,null,null,null,null,null,null,null,null,null,null,{"$f":"CONCATENATE($C$19,I4)","v":"156"},{"$f":"+N196","v":525}]
[null,null,null,null,null,null,null,null,null,null,null,null,null,525]
[null,null,null,null,null,null,null,null,null,null,null,null,null,{"$f":"CONCATENATE($C$5,J4)","v":"17"},{"$f":"+N198","v":" --"}]
[null,null,null,null,null,null,null,null,null,null,null,null,null," --"]
[null,null,null,null,null,null,null,null,null,null,null,null,null,{"$f":"CONCATENATE($C$6,J4)","v":"27"},{"$f":"+N200","v":" --"}]
[null,null,null,null,null,null,null,null,null,null,null,null,null," --"]
[null,null,null,null,null,null,null,null,null,null,null,null,null,{"$f":"CONCATENATE($C$7,J4)","v":"37"},{"$f":"+N202","v":1320}]
[null,null,null,null,null,null,null,null,null,null,null,null,null,1320]
[null,null,null,null,null,null,null,null,null,null,null,null,null,{"$f":"CONCATENATE($C$8,J4)","v":"47"},{"$f":"+N204","v":1155}]
[null,null,null,null,null,null,null,null,null,null,null,null,null,1155]
[null,null,null,null,null,null,null,null,null,null,null,null,null,{"$f":"CONCATENATE($C$9,J4)","v":"57"},{"$f":"+N206","v":1020}]
[null,null,null,null,null,null,null,null,null,null,null,null,null,1020]
[null,null,null,null,null,null,null,null,null,null,null,null,null,{"$f":"CONCATENATE($C$10,J4)","v":"67"},{"$f":"+N208","v":915}]
[null,null,null,null,null,null,null,null,null,null,null,null,null,915]
[null,null,null,null,null,null,null,null,null,null,null,null,null,{"$f":"CONCATENATE($C$11,J4)","v":"77"},{"$f":"+N210","v":835}]
[null,null,null,null,null,null,null,null,null,null,null,null,null,835]
[null,null,null,null,null,null,null,null,null,null,null,null,null,{"$f":"CONCATENATE($C$12,J4)","v":"87"},{"$f":"+N212","v":760}]
[null,null,null,null,null,null,null,null,null,null,null,null,null,760]
[null,null,null,null,null,null,null,null,null,null,null,null,null,{"$f":"CONCATENATE($C$13,J4)","v":"97"},{"$f":"+N214","v":705}]
[null,null,null,null,null,null,null,null,null,null,null,null,null,705]
[null,null,null,null,null,null,null,null,null,null,null,null,null,{"$f":"CONCATENATE($C$14,J4)","v":"107"},{"$f":"+N216","v":660}]
[null,null,null,null,null,null,null,null,null,null,null,null,null,660]
[null,null,null,null,null,null,null,null,null,null,null,null,null,{"$f":"CONCATENATE($C$15,J4)","v":"117"},{"$f":"+N218","v":620}]
[null,null,null,null,null,null,null,null,null,null,null,null,null,620]
[null,null,null,null,null,null,null,null,null,null,null,null,null,{"$f":"CONCATENATE($C$16,J4)","v":"127"},{"$f":"+N220","v":590}]
[null,null,null,null,null,null,null,null,null,null,null,null,null,590]
[null,null,null,null,null,null,null,null,null,null,null,null,null,{"$f":"CONCATENATE($C$17,J4)","v":"137"},{"$f":"+N222","v":560}]
[null,null,null,null,null,null,null,null,null,null,null,null,null,560]
[null,null,null,null,null,null,null,null,null,null,null,null,null,{"$f":"CONCATENATE($C$18,J4)","v":"147"},{"$f":"+N224","v":545}]
[null,null,null,null,null,null,null,null,null,null,null,null,null,545]
[null,null,null,null,null,null,null,null,null,null,null,null,null,{"$f":"CONCATENATE($C$19,J4)","v":"157"},{"$f":"+N226","v":530}]
[null,null,null,null,null,null,null,null,null,null,null,null,null,530]
[null,null,null,null,null,null,null,null,null,null,null,null,null,{"$f":"CONCATENATE($C$5,K4)","v":"18"},{"$f":"+N228","v":" --"}]
[null,null,null,null,null,null,null,null,null,null,null,null,null," --"]
[null,null,null,null,null,null,null,null,null,null,null,null,null,{"$f":"CONCATENATE($C$6,K4)","v":"28"},{"$f":"+N230","v":" --"}]
[null,null,null,null,null,null,null,null,null,null,null,null,null," --"]
[null,null,null,null,null,null,null,null,null,null,null,null,null,{"$f":"CONCATENATE($C$7,K4)","v":"38"},{"$f":"+N232","v":1380}]
[null,null,null,null,null,null,null,null,null,null,null,null,null,1380]
[null,null,null,null,null,null,null,null,null,null,null,null,null,{"$f":"CONCATENATE($C$8,K4)","v":"48"},{"$f":"+N234","v":1210}]
[null,null,null,null,null,null,null,null,null,null,null,null,null,1210]
[null,null,null,null,null,null,null,null,null,null,null,null,null,{"$f":"CONCATENATE($C$9,K4)","v":"58"},{"$f":"+N236","v":1065}]
[null,null,null,null,null,null,null,null,null,null,null,null,null,1065]
[null,null,null,null,null,null,null,null,null,null,null,null,null,{"$f":"CONCATENATE($C$10,K4)","v":"68"},{"$f":"+N238","v":950}]
[null,null,null,null,null,null,null,null,null,null,null,null,null,950]
[null,null,null,null,null,null,null,null,null,null,null,null,null,{"$f":"CONCATENATE($C$11,K4)","v":"78"},{"$f":"+N240","v":865}]
[null,null,null,null,null,null,null,null,null,null,null,null,null,865]
[null,null,null,null,null,null,null,null,null,null,null,null,null,{"$f":"CONCATENATE($C$12,K4)","v":"88"},{"$f":"+N242","v":785}]
[null,null,null,null,null,null,null,null,null,null,null,null,null,785]
[null,null,null,null,null,null,null,null,null,null,null,null,null,{"$f":"CONCATENATE($C$13,K4)","v":"98"},{"$f":"+N244","v":720}]
[null,null,null,null,null,null,null,null,null,null,null,null,null,720]
[null,null,null,null,null,null,null,null,null,null,null,null,null,{"$f":"CONCATENATE($C$14,K4)","v":"108"},{"$f":"+N246","v":675}]
[null,null,null,null,null,null,null,null,null,null,null,null,null,675]
[null,null,null,null,null,null,null,null,null,null,null,null,null,{"$f":"CONCATENATE($C$15,K4)","v":"118"},{"$f":"+N248","v":630}]
[null,null,null,null,null,null,null,null,null,null,null,null,null,630]
[null,null,null,null,null,null,null,null,null,null,null,null,null,{"$f":"CONCATENATE($C$16,K4)","v":"128"},{"$f":"+N250","v":600}]
[null,null,null,null,null,null,null,null,null,null,null,null,null,600]
[null,null,null,null,null,null,null,null,null,null,null,null,null,{"$f":"CONCATENATE($C$17,K4)","v":"138"},{"$f":"+N252","v":570}]
[null,null,null,null,null,null,null,null,null,null,null,null,null,570]
[null,null,null,null,null,null,null,null,null,null,null,null,null,{"$f":"CONCATENATE($C$18,K4)","v":"148"},{"$f":"+N254","v":550}]
[null,null,null,null,null,null,null,null,null,null,null,null,null,550]
[null,null,null,null,null,null,null,null,null,null,null,null,null,{"$f":"CONCATENATE($C$19,K4)","v":"158"},{"$f":"+N256","v":535}]
[null,null,null,null,null,null,null,null,null,null,null,null,null,535]
[null,null,null,null,null,null,null,null,null,null,null,null,null,{"$f":"CONCATENATE($C$5,L4)","v":"19"},{"$f":"+N258","v":" --"}]
[null,null,null,null,null,null,null,null,null,null,null,null,null," --"]
[null,null,null,null,null,null,null,null,null,null,null,null,null,{"$f":"CONCATENATE($C$6,L4)","v":"29"},{"$f":"+N260","v":" --"}]
[null,null,null,null,null,null,null,null,null,null,null,null,null," --"]
[null,null,null,null,null,null,null,null,null,null,null,null,null,{"$f":"CONCATENATE($C$7,L4)","v":"39"},{"$f":"+N262","v":" --"}]
[null,null,null,null,null,null,null,null,null,null,null,null,null," --"]
[null,null,null,null,null,null,null,null,null,null,null,null,null,{"$f":"CONCATENATE($C$8,L4)","v":"49"},{"$f":"+N264","v":1265}]
[null,null,null,null,null,null,null,null,null,null,null,null,null,1265]
[null,null,null,null,null,null,null,null,null,null,null,null,null,{"$f":"CONCATENATE($C$9,L4)","v":"59"},{"$f":"+N266","v":1110}]
[null,null,null,null,null,null,null,null,null,null,null,null,null,1110]
[null,null,null,null,null,null,null,null,null,null,null,null,null,{"$f":"CONCATENATE($C$10,L4)","v":"69"},{"$f":"+N268","v":985}]
[null,null,null,null,null,null,null,null,null,null,null,null,null,985]
[null,null,null,null,null,null,null,null,null,null,null,null,null,{"$f":"CONCATENATE($C$11,L4)","v":"79"},{"$f":"+N270","v":895}]
[null,null,null,null,null,null,null,null,null,null,null,null,null,895]
[null,null,null,null,null,null,null,null,null,null,null,null,null,{"$f":"CONCATENATE($C$12,L4)","v":"89"},{"$f":"+N272","v":810}]
[null,null,null,null,null,null,null,null,null,null,null,null,null,810]
[null,null,null,null,null,null,null,null,null,null,null,null,null,{"$f":"CONCATENATE($C$13,L4)","v":"99"},{"$f":"+N274","v":740}]
[null,null,null,null,null,null,null,null,null,null,null,null,null,740]
[null,null,null,null,null,null,null,null,null,null,null,null,null,{"$f":"CONCATENATE($C$14,L4)","v":"109"},{"$f":"+N276","v":690}]
[null,null,null,null,null,null,null,null,null,null,null,null,null,690]
[null,null,null,null,null,null,null,null,null,null,null,null,null,{"$f":"CONCATENATE($C$15,L4)","v":"119"},{"$f":"+N278","v":645}]
[null,null,null,null,null,null,null,null,null,null,null,null,null,645]
[null,null,null,null,null,null,null,null,null,null,null,null,null,{"$f":"CONCATENATE($C$16,L4)","v":"129"},{"$f":"+N280","v":610}]
[null,null,null,null,null,null,null,null,null,null,null,null,null,610]
[null,null,null,null,null,null,null,null,null,null,null,null,null,{"$f":"CONCATENATE($C$17,L4)","v":"139"},{"$f":"+N282","v":580}]
[null,null,null,null,null,null,null,null,null,null,null,null,null,580]
[null,null,null,null,null,null,null,null,null,null,null,null,null,{"$f":"CONCATENATE($C$18,L4)","v":"149"},{"$f":"+N284","v":555}]
[null,null,null,null,null,null,null,null,null,null,null,null,null,555]
[null,null,null,null,null,null,null,null,null,null,null,null,null,{"$f":"CONCATENATE($C$19,L4)","v":"159"},{"$f":"+N286","v":540}]
[null,null,null,null,null,null,null,null,null,null,null,null,null,540]
[null,null,null,null,null,null,null,null,null,null,null,null,null,null,{"$f":"+AD48","v":0}]